Workbook

Sheet CEDULA-equidad
B1: PROGRAMA OPERATIVO ANUAL 2022
B3: FORMATO 01 "DESARROLLO DE PROCESOS"
B5: UNIVERSIDAD: Universidad Tecnológica de Bahía de Banderas | FP5: ACCESO Y PERMANENCIA DE LA EDUCACIÓN DE GRUPOS VULNERABLES
FP6: INDICADOR | FQ6: FÓRMULA | FR6: unidad de medida | FS6: meta nacional
B7: DENOMINACIÓN DEL PROCESO: EQUIDAD + GRUPOS VULNERABLES (1) | P7: NUM. DE PROCESO | X7: TIPO DE PROCESO (3) | FP7: Número de alumnos de origen indígena atendidos en la institución | FQ7: (Número de alumnos de origen indígena en el año t/número total de alumnos en el año t)*100 | FR7: Alumnos | FS7: 9000
FP8: Porcentaje de alumnos de origen indígena becados | FQ8: (Número de alumnos de origen indígena becados/ número de alumnos)*100 | FR8: Alumnos | FS8: 56
P9: 1 | X9: Equidad de Género | FP9: ATENCIÓN EDUCATIVA DE LAS PERSONAS CON DISCAPACIDAD
FP10: INDICADOR | FQ10: FÓRMULA | FR10: unidad de medida | FS10: meta nacional
B11: ÁREA RESPONSABLE ( 4 ) | FP11: Número de alumnos atendidos con algun tipo de dicapacidad | FQ11: (Número de alumnos con algun tipo de discapacidad en el año t/número total de estudiantes en el año t)*100 | FR11: Alumnos | FS11: 1745
FP12: Acondicionamiento de espacios para personas con discapacidad | FQ12: (Número de Espacios para personas con discapacidad acondicionados/número de espacios para personas con discapacidad programados para acondicionar)*100 | FR12: Espacios | FS12: 101
B13: SERVICIOS ESCOLARES | FP13: La Institución forma parte de la Red Nacional Incluyente para personas con discapacidad | FQ13: NOTA: Poner sí o no únicamente | FR13: certificación | FS13: 30
B14: INDICADORES ( 5 ) | FP14: INDICADOR | FQ14: FÓRMULA | FR14: unidad de medida | FS14: meta nacional
B15: NOMBRE DEL INDICADOR (5.1) | C15: FORMULA | D15: UNIDAD DE MEDIDA | E15: META INSTITUCIONAL A 2024 PROGRAMA INSTITUCIONAL DE DESARROLLO DE LA UNIVERSIDAD | J15: CONTEXTO ACTUAL Y A FUTURO DEL INDICADOR (5.2) | V15: Total alcanzado (Se reporta en el tercer cuatrimestre) (5.3) | FP15: Cursos impartidos sobre equidad de género | FQ15: Cursos de género impartidos en el año/Total de cursos impartidos por la institución*100 | FR15: Cursos | FS15: 586
B16: Indicador: Porcentaje de estudiantes mujeres atendidas en la institución | C16: =(IF(B16="Cursos impartidos sobre equidad de género",FQ15,IF(B16="Indicador: Porcentaje de estudiantes mujeres atendidas en la institución",FQ16,IF(B16="Indicador: Porcentaje de estudiantes mujeres becadas",FQ17,IF(B16="Certificación en el Modelo de Equidad de Género (MEG)",FQ18))))) -> (Número de estudiantes mujeres atendidas en la institución/ número total de estudiantes en la institución)*100 | D16: =(IF(B16="Cursos impartidos sobre equidad de género",FR15,IF(B16="Indicador: Porcentaje de estudiantes mujeres atendidas en la institución",FR16,IF(B16="Indicador: Porcentaje de estudiantes mujeres becadas",FR17,IF(B16="Certificación en el Modelo de Equidad de Género (MEG)",FR18))))) -> Mujeres atendidas | E16: Líneas estratégicas del PIDE del SUT o SUP 2013-2018 al que se da atención. Desarrollar programas para la retención escolar de estudiantes en el ejercicio de su maternidad y paternidad. | J16: 2021 | P16: 2022 | FP16: Indicador: Porcentaje de estudiantes mujeres atendidas en la institución | FQ16: (Número de estudiantes mujeres atendidas en la institución/ número total de estudiantes en la institución)*100 | FR16: Mujeres atendidas | FS16: 45
J17: Número actual | M17: Porcentaje actual | P17: Número a lograr | S17: Porcentaje a lograr | V17: Número alcanzado | Y17: Porcentaje alcanzado | FP17: Indicador: Porcentaje de estudiantes mujeres becadas | FQ17: (Número de estudiantes mujeres becadas/ número total de estudiantes mujeres en la institución)*100 | FR17: Mujeres becadas | FS17: 54
J18: 586 | M18: =J18/1175*100 -> 49.87234043 | P18: 600 | S18: =P18/1500*100 -> 40 | FP18: Certificación en el Modelo de Equidad de Género (MEG) | FQ18: Certificación en el Modelo de Equidad de Género (MEG) (NOTA: Poner sí o no únicamente) | FR18: certificación | FS18: 90
B19: NOMBRE DEL INDICADOR (5.1) | C19: FORMULA | D19: UNIDAD DE MEDIDA | E19: META INSTITUCIONAL A 2024 PROGRAMA INSTITUCIONAL DE DESARROLLO DE LA UNIVERSIDAD | J19: CONTEXTO ACTUAL Y A FUTURO DEL INDICADOR (5.2) | V19: Total alcanzado (Se reporta en el tercer cuatrimestre) (5.3) | FP19: TIPO DE PROCESO
B20: Indicador: Porcentaje de estudiantes mujeres becadas | C20: =(IF(B20="Cursos impartidos sobre equidad de género",FQ15,IF(B20="Indicador: Porcentaje de estudiantes mujeres atendidas en la institución",FQ16,IF(B20="Indicador: Porcentaje de estudiantes mujeres becadas",FQ17,IF(B20="Certificación en el Modelo de Equidad de Género (MEG)",FQ18))))) -> (Número de estudiantes mujeres becadas/ número total de estudiantes mujeres en la institución)*100 | D20: =(IF(B20="Cursos impartidos sobre equidad de género",FR15,IF(B20="Indicador: Porcentaje de estudiantes mujeres atendidas en la institución",FR16,IF(B20="Indicador: Porcentaje de estudiantes mujeres becadas",FR17,IF(B20="Certificación en el Modelo de Equidad de Género (MEG)",FR18))))) -> Mujeres becadas | E20: Líneas estratégicas del PIDE del SUT o SUP 2013-2018 al que se da atención. Desarrollar programas para la retención escolar de estudiantes en el ejercicio de su maternidad y paternidad. | J20: 2021 | P20: 2022 | FP20: Eficiencia
J21: Número actual | M21: Porcentaje actual | P21: Número a lograr | S21: Porcentaje a lograr | V21: Número alcanzado | Y21: Porcentaje alcanzado | FP21: Eficacia
J22: 172 | M22: =J22/J18*100 -> 29.35153584 | P22: 185 | S22: =P22/P18*100 -> 30.83333333 | FP22: Pertinencia
B23: OBJETIVO AL QUE ATIENDE DE ACUERDO AL PSE 2020-2024 (6) | C23: 6.1.- Garantizar el derecho de la población en México a una educación equitativa, inclusiva, intercultural e integral, que tenga como eje principal el interés superior de las niñas, niños, adolescentes y jóvenes. | FP23: Vinculación
B24: CALENDARIZACIÓN Y SEGUIMIENTO DE LAS PRINCIPALES ACTIVIDADES (7) | FP24: Equidad de Género
B25: ACTIVIDADES | D25: UNIDAD DE MEDIDA | E25: META ANUAL | F25: CALENDARIO 2022 CUATRIMESTRAL | R25: JUSTIFICACIÓN DE LAS DESVIACIONES POSITIVAS O NEGATIVAS (8) | Y25: AREA EJECUTORA (9)
F26: 1 | J26: 2 | N26: 3
F27: PROG | H27: ALC | J27: PROG | L27: ALC | N27: PROG | P27: ALC
F28: # | G28: % | H28: # | I28: % | J28: # | K28: % | L28: # | M28: % | N28: # | O28: % | P28: # | Q28: %
B29: Aplicación de examen de diagnóstico | D29: Exani II/Examen Academia | E29: 2 | J29: 2 | K29: 100
B30: Inscripción de alumnos de nuevo ingreso para TSU y alumnos de continuidad de estudios | D30: Inscripción | E30: 2 | J30: 1 | K30: 50 | N30: 1 | O30: 50
B31: Difusión de becas a toda la comunidad estudiantil | D31: Convocatorias | E31: 6 | F31: 2 | G31: 33.33 | J31: 2 | K31: 66.66 | N31: 6 | O31: 100
B32: Validaciones de documentos | D32: Periodo | E32: 2 | F32: 1 | G32: 50 | J32: 1 | K32: 100
B33: Credencialización | D33: Periodo | E33: 4 | F33: 1 | G33: 25 | J33: 1 | K33: 50 | N33: 2 | O33: 100
B34: DESCRIPCIÓN DEL ALCANCE DEL INDICADOR Y EFECTO SOCIOECONOMICO (10)
B35: Mantener la equidad de genero en la institución mediante la promoción de becas a toda la comunidad estudiantil, sin distinción; con la finalidad de incrementar el número de mujeres que cuentan con educación superior en nuestra Región.
B37: Mtra. Carmina Yadira Regalado Mardueño | M37: LIC. María Guadalupe Ambriz Meza
B38: NOMBRE Y FIRMA DEL RECTOR | M38: NOMBRE Y FIRMA DEL RESPONSABLE O COORDINADOR DEL PROCESO
B43: PROGRAMA OPERATIVO ANUAL 2022
B45: FORMATO 01 "DESARROLLO DE PROCESOS"
B47: UNIVERSIDAD: Universidad Tecnológica de Bahía de Banderas
B49: DENOMINACIÓN DEL PROCESO: EQUIDAD + GRUPOS VULNERABLES (1) | P49: NUM. DE PROCESO | X49: TIPO DE PROCESO (3)
P51: 1 (2) | X51: Eficiencia
B53: ÁREA RESPONSABLE( 4 )
B56: INDICADORES ( 5 )
B57: NOMBRE DEL INDICADOR (5.1) | C57: FORMULA | D57: UNIDAD DE MEDIDA | E57: META INSTITUCIONAL A 2024 PROGRAMA INSTITUCIONAL DE DESARROLLO DE LA UNIVERSIDAD | J57: CONTEXTO ACTUAL Y A FUTURO DEL INDICADOR (5.2) | V57: Total alcanzado (Se reporta en el tercer cuatrimestre) (5.3)
B58: La Institución forma parte de la Red Nacional Incluyente para personas con discapacidad | C58: =(IF(B58="Número de alumnos atendidos con algun tipo de dicapacidad",FQ11,IF(B58="Acondicionamiento de espacios para personas con discapacidad",FQ12,IF(B58="La Institución forma parte de la Red Nacional Incluyente para personas con discapacidad",FQ13,IF(B58="Personal de la UT con alguna discapacidad",#REF!))))) -> NOTA: Poner sí o no únicamente | D58: =(IF(B58="Número de alumnos atendidos con algun tipo de dicapacidad",FR11,IF(B58="Acondicionamiento de espacios para personas con discapacidad",FR12,IF(B58="La Institución forma parte de la Red Nacional Incluyente para personas con discapacidad",FR13,IF(B58="Personal de la UT con alguna discapacidad",#REF!))))) -> certificación | J58: 2021 | P58: 2022
J59: Número actual | M59: Porcentaje actual | P59: Número a lograr | S59: Porcentaje a lograr | V59: Número alcanzado | Y59: Porcentaje alcanzado
B61: NOMBRE DEL INDICADOR (5.1) | C61: FORMULA | D61: UNIDAD DE MEDIDA | E61: META INSTITUCIONAL A 2024 PROGRAMA INSTITUCIONAL DE DESARROLLO DE LA UNIVERSIDAD | J61: CONTEXTO ACTUAL Y A FUTURO DEL INDICADOR (5.2) | V61: Total alcanzado (Se reporta en el tercer cuatrimestre) (5.3)
B62: La Institución forma parte de la Red Nacional Incluyente para personas con discapacidad | C62: =(IF(B62="Número de alumnos atendidos con algun tipo de dicapacidad",FQ11,IF(B62="Acondicionamiento de espacios para personas con discapacidad",FQ12,IF(B62="La Institución forma parte de la Red Nacional Incluyente para personas con discapacidad",FQ13,IF(B62="Personal de la UT con alguna discapacidad",#REF!))))) -> NOTA: Poner sí o no únicamente | D62: =(IF(B62="Número de alumnos atendidos con algun tipo de dicapacidad",FR11,IF(B62="Acondicionamiento de espacios para personas con discapacidad",FR12,IF(B62="La Institución forma parte de la Red Nacional Incluyente para personas con discapacidad",FR13,IF(B62="Personal de la UT con alguna discapacidad",#REF!))))) -> certificación | J62: 2021 | P62: 2022
J63: Número actual | M63: Porcentaje actual | P63: Número a lograr | S63: Porcentaje a lograr | V63: Número alcanzado | Y63: Porcentaje alcanzado
B65: OBJETIVO AL QUE ATIENDE DE ACUERDO AL PSE 2020-2024 (6)
B66: CALENDARIZACIÓN Y SEGUIMIENTO DE LAS PRINCIPALES ACTIVIDADES (7)
B67: ACTIVIDADES | D67: UNIDAD DE MEDIDA | E67: META ANUAL | F67: CALENDARIO 2022 CUATRIMESTRAL | R67: JUSTIFICACIÓN DE LAS DESVIACIONES POSITIVAS O NEGATIVAS (8) | Y67: AREA EJECUTORA (9)
F68: 1 | J68: 2 | N68: 3
F69: PROG | H69: ALC | J69: PROG | L69: ALC | N69: PROG | P69: ALC
F70: # | G70: % | H70: # | I70: % | J70: # | K70: % | L70: # | M70: % | N70: # | O70: % | P70: # | Q70: %
B76: DESCRIPCIÓN DEL ALCANCE DEL INDICADOR Y EFECTO SOCIOECONOMICO (10)
B80: NOBRE Y FIRMA DEL RECTOR | P80: NOMBRE Y FIRMA DEL RESPONSABLE O COORDINADOR DEL PROCESO
B85: PROGRAMA OPERATIVO ANUAL 2022
B87: FORMATO 01 "DESARROLLO DE PROCESOS"
B89: UNIVERSIDAD: Universidad Tecnológica de Bahía de Banderas
B91: DENOMINACIÓN DEL PROCESO: EQUIDAD + GRUPOS VULNERABLES (1) | P91: NUM. DE PRCESO | X91: TIPO DE PROCESO (3)
P93: 1 (2) | X93: Eficiencia
B95: ÁREA RESPONSABLE( 4 )
B98: INDICADORES ( 5 )
B99: NOMBRE DEL INDICADOR (5.1) | C99: FORMULA | D99: UNIDAD DE MEDIDA | E99: META INSTITUCIONAL A 2024 PROGRAMA INSTITUCIONAL DE DESARROLLO DE LA UNIVERSIDAD | J99: CONTEXTO ACTUAL Y A FUTURO DEL INDICADOR (5.2) | V99: Total alcanzado (Se reporta en el tercer cuatrimestre) (5.3)
B100: Número de alumnos de origen indígena atendidos en la institución | C100: =(IF(B100="Número de alumnos de origen indígena atendidos en la institución",FQ7,IF(B100="Porcentaje de alumnos de origen indígena becados",FQ8))) -> (Número de alumnos de origen indígena en el año t/número total de alumnos en el año t)*100 | D100: =(IF(B100="Número de alumnos de origen indígena atendidos en la institución",FR7,IF(B100="Porcentaje de alumnos de origen indígena becados",FR8))) -> Alumnos | J100: 2021 | P100: 2022
J101: Número actual | M101: Porcentaje actual | P101: Número a lograr | S101: Porcentaje a lograr | V101: Número alcanzado | Y101: Porcentaje alcanzado
B103: NOMBRE DEL INDICADOR (5.1) | C103: FORMULA | D103: UNIDAD DE MEDIDA | E103: META INSTITUCIONAL A 2024 PROGRAMA INSTITUCIONAL DE DESARROLLO DE LA UNIVERSIDAD | J103: CONTEXTO ACTUAL Y A FUTURO DEL INDICADOR (5.2) | V103: Total alcanzado (Se reporta en el tercer cuatrimestre) (5.3)
B104: Número de alumnos de origen indígena atendidos en la institución | C104: =(IF(B104="Número de alumnos de origen indígena atendidos en la institución",FQ7,IF(B104="Porcentaje de alumnos de origen indígena becados",FQ8))) -> (Número de alumnos de origen indígena en el año t/número total de alumnos en el año t)*100 | D104: =(IF(B104="Número de alumnos de origen indígena atendidos en la institución",FR7,IF(B104="Porcentaje de alumnos de origen indígena becados",FR8))) -> Alumnos | J104: 2021 | P104: 2022
J105: Número actual | M105: Porcentaje actual | P105: Número a lograr | S105: Porcentaje a lograr | V105: Número alcanzado | Y105: Porcentaje alcanzado
B107: OBJETIVO AL QUE ATIENDE DE ACUERDO AL PSE 2020-2024 (6)
B108: CALENDARIZACIÓN Y SEGUIMIENTO DE LAS PRINCIPALES ACTIVIDADES (7)
B109: ACTIVIDADES | D109: UNIDAD DE MEDIDA | E109: META ANUAL | F109: CALENDARIO 2022 CUATRIMESTRAL | R109: JUSTIFICACIÓN DE LAS DESVIACIONES POSITIVAS O NEGATIVAS (8) | Y109: AREA EJECUTORA (9)
F110: 1 | J110: 2 | N110: 3
F111: PROG | H111: ALC | J111: PROG | L111: ALC | N111: PROG | P111: ALC
F112: # | G112: % | H112: # | I112: % | J112: # | K112: % | L112: # | M112: % | N112: # | O112: % | P112: # | Q112: %
B118: DESCRIPCIÓN DEL ALCANCE DEL INDICADOR Y EFECTO SOCIOECONOMICO (10)
B123: NOBRE Y FIRMA DEL RECTOR | P123: NOMBRE Y FIRMA DEL RESPONSABLE O COORDINADOR DEL PROCESO

Sheet CEDULA- académico
B1: PROGRAMA OPERATIVO ANUAL 2022
B3: FORMATO 01 "DESARROLLO DE PROCESOS"
B5: UNIVERSIDAD: Universidad Tecnológica de Bahía de Banderas
B7: DENOMINACIÓN DEL PROCESO: ACADÉMICO (1) | Q7: NUM. DE PROCESO | Y7: TIPO DE PROCESO (3) | FO7: ASEGURAMIENTO DE LA CALIDAD DE LOS PROGRAMAS EDUCATIVOS
FO8: INDICADOR | FP8: FÓRMULA | FQ8: Unidad de Medida | FR8: Media Nacional
Q9: 2 | Y9: Eficiencia | FO9: Porcentaje de programas evaluables de TSU certificados en el nivel 1 de CIEES y/o acreditados por algún organismo reconocido por el COPAES | FP9: (Número de programas evaluables de TSU certificados en el nivel 1 de CIEES y/o acreditados por organismos reconocidos por el COPAES/ Total de programas de TSU evaluables)*100 | FQ9: PE | FR9: 87
FO10: Porcentaje de programas evaluables de licenciatura certificados en el nivel 1 de CIEES y/o acreditados por algún organismo reconocido por el COPAES | FP10: (Número de programas evaluables de licenciatura certificados en el nivel 1 de CIEES y/o acreditados por organismos reconocidos por el COPAES/ Total de programas de Licenciatura evaluables)*100 | FQ10: PE | FR10: 64
B11: ÁREA RESPONSABLE ( 4 ) | FO11: Porcentaje de estudiantes que realiza estudios en programas de TSU certificados en el nivel 1 de CIEES y/o acreditados por el COPAES | FP11: (Número de estudiantes que realizan sus estudios en programas de TSU certificados en el nivel 1 de CIEES y/o acreditados por el COPAES/ Número de estudiantes que realizan sus estudios de TSU en programas evaluables)*100 | FQ11: Estudiantes | FR11: 91
FO12: Porcentaje de estudiantes que realiza estudios en programas de Licenciatura certificados en el nivel 1 de CIEES y/o acreditados por el COPAES | FP12: (Número de estudiantes que realizan sus estudios en programas de licenciatura certificados en el nivel 1 de CIEES y/o acreditados por el COPAES/ Número de estudiantes que realizan sus estudios de Licenciatura en programas evaluables)*100 | FQ12: Estudiantes | FR12: 65
B13: DIVISION ENERGÍAS RENOVABLES, TICS, AGRICULTURA, TERAPIA FÍSICA Y DESARROLLO DE NEGOCIOS | FO13: Porcentaje de Avance en la Obtención de la Certificación en los tres procesos básicos en la norma ISO aplicables | FP13: (Número de certificaciones obtenidas en el año t/número de certificaciones programadas en el año t)*100 | FQ13: Certificaciones | FR13: 93
B14: INDICADORES ( 5 ) | FO14: Número de estudios de trayectoria y de egresados llevados a cabo en el Año | FP14: Número de estudios de trayectoria y de egresados llevados a cabo en el año | FQ14: Estudios | FR14: 447
B15: NOMBRE DEL INDICADOR (5.1) | C15: FÓRMULA | D15: UNIDAD DE MEDIDA | E15: META INSTITUCIONAL A 2024 PROGRAMA INSTITUCIONAL DE DESARROLLO DE LA UNIVERSIDAD | J15: CONTEXTO ACTUAL Y A FUTURO DEL INDICADOR (5.2) | V15: Total alcanzado (Se reporta en el tercer cuatrimestre) (5.3) | FO15: Porcentaje de programas educativos con Análisis Situacional del Trabajo (AST) | FP15: (Programas educativos en la institución con AST vigentes/ total de programas educativos en la institución)*100 | FQ15: Análisis | FR15: 96
B16: Porcentaje de programas evaluables de TSU certificados en el nivel 1 de CIEES y/o acreditados por algún organismo reconocido por el COPAES | C16: =(IF(B16="Porcentaje de programas evaluables de TSU certificados en el nivel 1 de CIEES y/o acreditados por algún organismo reconocido por el COPAES",FP9,IF(B16="Porcentaje de programas evaluables de licenciatura certificados en el nivel 1 de CIEES y/o acreditados por algún organismo reconocido por el COPAES",FP10,IF(B16="Porcentaje de estudiantes que realiza estudios en programas de TSU certificados en el nivel 1 de CIEES y/o acreditados por el COPAES",FP11,IF(B16="Porcentaje de estudiantes que realiza estudios en programas de Licenciatura certificados en el nivel 1 de CIEES y/o acreditados por el COPAES",FP12,IF(B16="Porcentaje de Avance en la Obtención de la Certificación en los tres procesos básicos en la norma ISO aplicables",FP13)))))) -> (Número de programas evaluables de TSU certificados en el nivel 1 de CIEES y/o acreditados por organismos reconocidos por el COPAES/ Total de programas de TSU evaluables)*100 | D16: =(IF(B16="Porcentaje de programas evaluables de TSU certificados en el nivel 1 de CIEES y/o acreditados por algún organismo reconocido por el COPAES",FQ9,IF(B16="Porcentaje de programas evaluables de licenciatura certificados en el nivel 1 de CIEES y/o acreditados por algún organismo reconocido por el COPAES",FQ10,IF(B16="Porcentaje de estudiantes que realiza estudios en programas de TSU certificados en el nivel 1 de CIEES y/o acreditados por el COPAES",FQ11,IF(B16="Porcentaje de estudiantes que realiza estudios en programas de Licenciatura certificados en el nivel 1 de CIEES y/o acreditados por el COPAES",FQ12,IF(B16="Porcentaje de Avance en la Obtención de la Certificación en los tres procesos básicos en la norma ISO aplicables",FQ13)))))) -> PE | E16: Líneas estratégicas del PIDE del SUT o SUP 2013-2018 al que se da atención. ( 5 ). Crear una agenda institucional para atender las prioridades y áreas de calidad educativa. | J16: 2021 | P16: 2022 | FO16: Número de estudios de factibilidad elaborados | FP16: Número de estudios de factibilidad elaborados | FQ16: Estudios | FR16: 243
J17: Número actual | M17: Porcentaje actual | P17: Número a lograr | S17: Porcentaje a lograr | V17: Número alcanzado | Y17: Porcentaje alcanzado | FO17: AUMENTO CON EFICACIA DE LA COBERTURA
J18: 4 | M18: =J18/8*100 -> 50 | P18: 7 | S18: 78 | FO18: INDICADOR | FP18: FÓRMULA | FQ18: Unidad de Medida | FR18: Media Nacional
FO19: Número de estudiantes inscritos en TSU | FP19: Número de estudiantes inscritos en TSU | FQ19: Estudiantes | FR19: 199180
FO20: Número de estudiantes inscritos en Licenciatura | FP20: Número de estudiantes inscritos en Licenciatura | FQ20: Estudiantes | FR20: 87053
B21: NOMBRE DEL INDICADOR (5.1) | C21: FÓRMULA | D21: UNIDAD DE MEDIDA | E21: META INSTITUCIONAL A 2024 PROGRAMA INSTITUCIONAL DE DESARROLLO DE LA UNIVERSIDAD | J21: CONTEXTO ACTUAL Y A FUTURO DEL INDICADOR (5.2) | V21: Total alcanzado (Se reporta en el tercer cuatrimestre) (5.3) | FO21: Tasa de egreso por cohorte generacional de TSU | FP21: (Número de estudiantes de TSU por cohorte que egresan/ Total de estudiantes de TSU de la cohorte)*100 | FQ21: Estudiantes | FR21: 66
B22: Porcentaje de estudiantes que realiza estudios en programas de TSU certificados en el nivel 1 de CIEES y/o acreditados por el COPAES | C22: =(IF(B22="Porcentaje de programas evaluables de TSU certificados en el nivel 1 de CIEES y/o acreditados por algún organismo reconocido por el COPAES",FP9,IF(B22="Porcentaje de programas evaluables de licenciatura certificados en el nivel 1 de CIEES y/o acreditados por algún organismo reconocido por el COPAES",FP10,IF(B22="Porcentaje de estudiantes que realiza estudios en programas de TSU certificados en el nivel 1 de CIEES y/o acreditados por el COPAES",FP11,IF(B22="Porcentaje de estudiantes que realiza estudios en programas de Licenciatura certificados en el nivel 1 de CIEES y/o acreditados por el COPAES",FP12,IF(B22="Porcentaje de Avance en la Obtención de la Certificación en los tres procesos básicos en la norma ISO aplicables",FP13)))))) -> (Número de estudiantes que realizan sus estudios en programas de TSU certificados en el nivel 1 de CIEES y/o acreditados por el COPAES/ Número de estudiantes que realizan sus estudios de TSU en programas evaluables)*100 | D22: =(IF(B22="Porcentaje de programas evaluables de TSU certificados en el nivel 1 de CIEES y/o acreditados por algún organismo reconocido por el COPAES",FQ9,IF(B22="Porcentaje de programas evaluables de licenciatura certificados en el nivel 1 de CIEES y/o acreditados por algún organismo reconocido por el COPAES",FQ10,IF(B22="Porcentaje de estudiantes que realiza estudios en programas de TSU certificados en el nivel 1 de CIEES y/o acreditados por el COPAES",FQ11,IF(B22="Porcentaje de estudiantes que realiza estudios en programas de Licenciatura certificados en el nivel 1 de CIEES y/o acreditados por el COPAES",FQ12,IF(B22="Porcentaje de Avance en la Obtención de la Certificación en los tres procesos básicos en la norma ISO aplicables",FQ13)))))) -> Estudiantes | E22: Líneas estratégicas del PIDE del SUT o SUP 2013-2018 al que se da atención. ( 5 ). Crear una agenda institucional para atender las prioridades y áreas de calidad educativa. | J22: 2021 | P22: 2022 | FO22: Tasa de egreso por cohorte generacional de Licenciatura | FP22: (Número de estudiantes de Licenciatura por cohorte que egresan/ Total de estudiantes de Licenciatura de la cohorte)*100 | FQ22: Estudiantes | FR22: 73
J23: Número actual | M23: Porcentaje actual | P23: Número a lograr | S23: Porcentaje a lograr | V23: Número alcanzado | Y23: Porcentaje alcanzado | FO23: Retención escolar | FP23: (Número de estudiantes que finalizaron el ciclo de formación/Número de estudiantes que iniciaron el ciclo de formación)*100 | FQ23: Estudiantes | FR23: 78
J24: 351 | M24: =J24/630*100 -> 55.71428571 | P24: 600 | S24: =P24/900*100 -> 66.66666667 | FO24: PREVENCIÓN Y DISMINUCIÓN DEL ABANDONO ESCOLAR
FO25: INDICADOR | FP25: FÓRMULA | FQ25: Unidad de Medida | FR25: Media Nacional
FO26: Porcentaje de profesores de tiempo completo que imparten tutorías | FP26: (Número de profesores de tiempo completo que imparten tutorías/ número de profesores de tiempo completo)*100 | FQ26: Profesores | FR26: 96
B27: OBJETIVO AL QUE ATIENDE DE ACUERDO AL PSE 2020-2024 (6) | D27: 6.2. Garantizar el derecho de la población en México a una educación de excelencia, pertinente y relevante en los diferentes tipos, niveles y modalidades del Sistema Educativo Nacional. | FO27: Porcentaje de estudiantes de nuevo ingreso que reciben programas de inducción | FP27: (Número de estudiantes de nuevo ingreso participantes en programas de inducción/número total de estudiantes de nuevo igreso)*100 | FQ27: Estudiantes | FR27: 99
FO28: Programas de Tutorías | FP28: Número de programas de tutorías que tiene la institución | FQ28: Programas de Tutorías | FR28: 109
B29: CALENDARIZACIÓN Y SEGUIMIENTO DE LAS PRINCIPALES ACTIVIDADES (7) | FO29: Atención Psicopedagógica | FP29: Número de programas de atención psicopedagógica que tiene la institución | FQ29: Programas de Atención Psicopedagógica | FR29: 106
B30: ACTIVIDADES | D30: UNIDAD DE MEDIDA | E30: META ANUAL | G30: CALENDARIO 2022 CUATRIMESTRAL | S30: JUSTIFICACIÓN DE LAS DESVIACIONES POSITIVAS O NEGATIVAS (8) | Z30: ÁREA EJECUTORA (9) | FO30: Porcentaje de alumnos que participan en programa de tutorÍas | FP30: (Número de alumnos en programas de tutorías/ Total de alumnos)*100 | FQ30: Estudiantes | FR30: 98
G31: 1 | K31: 2 | O31: 3
G32: PROG | I32: ALC | K32: PROG | M32: ALC | O32: PROG | Q32: ALC | FO32: TIPO DE PROCESO
G33: # | H33: % | I33: # | J33: % | K33: # | L33: % | M33: # | N33: % | O33: # | P33: % | Q33: # | R33: % | FO33: Eficiencia
B34: Realizar ejercicio de autoevaluación para la Acreditación del TSU en Desarrollo de Negocios | D34: Autoevaluación | E34: 1 | K34: 1 | L34: 100 | Z34: Division DNAM(1) | FO34: Eficacia
B35: Recibir la evaluación para la acreditación del PE | D35: Evaluación | E35: =1+2 -> 3 | O35: =1+2 -> 3 | P35: 100 | Z35: Division DNAM(1) | FO35: Pertinencia
B36: Participar en el Curso-Taller para la Autoevaluación con fines de acreditación del Programa de Ingeniería en Mantenimiento Industrial en el CACEI | D36: Curso | E36: 1 | K36: 1 | L36: 100 | Z36: Division ER y MI | FO36: Vinculación
B37: Atender las reuniones del comité nacional de TF que se estaran reuniendo para revisar las actualizaciones del PE de TF | D37: Reuniones | E37: 2 | G37: 1 | H37: 50 | K37: 1 | L37: 100 | Z37: Dirección de carrera de TU y TF | FO37: Equidad de Género
B38: Atender las reuniones del comité nacional de Tf que se estaran reuniendo para revisar los diferentes organismos acreditadores por los que Tf pudiera participar | D38: Reuniones | E38: 1 | G38: 1 | H38: 100 | Z38: Dirección de carrera de TU y TF
B39: DESCRIPCIÓN DEL ALCANCE DEL INDICADOR Y EFECTO SOCIOECONOMICO (10)
B42: Mtra. Carmina Yadira Regalado Mardueño | P42: Lic. Victor Manuel Benítez Pérez
B43: NOMBRE Y FIRMA DEL/LA RECTOR(A) | Q43: NOMBRE Y FIRMA DE LA PERSONA RESPONSABLE DEL PROCESO
B48: PROGRAMA OPERATIVO ANUAL 2022
B50: FORMATO 01 "DESARROLLO DE PROCESOS"
B52: UNIVERSIDAD: Universidad Tecnológica de Bahía de Banderas
B54: DENOMINACIÓN DEL PROCESO: ACADÉMICO (1) | Q54: NUM. DE PROCESO | Y54: TIPO DE PROCESO (3)
Q56: 2.1 | Y56: Eficacia
B58: ÁREA RESPONSABLE( 4 )
B60: SECRETARÍA ACADEMICA / PLANEACIÓN Y EVALUACIÓN
B61: INDICADORES ( 5 )
B62: NOMBRE DEL INDICADOR (5.1) | C62: FÓRMULA | D62: UNIDAD DE MEDIDA | E62: META INSTITUCIONAL A 2024 PROGRAMA INSTITUCIONAL DE DESARROLLO DE LA UNIVERSIDAD | J62: CONTEXTO ACTUAL Y A FUTURO DEL INDICADOR (5.2) | V62: Total alcanzado (Se reporta en el tercer cuatrimestre) (5.3)
B63: Número de estudios de trayectoria y de egresados llevados a cabo en el Año | C63: =(IF(B63="Número de estudios de trayectoria y de egresados llevados a cabo en el Año",FP14,IF(B63="Porcentaje de programas educativos con Análisis Situacional del Trabajo (AST)",FP15,IF(B63="Número de estudios de factibilidad elaborados",FP16)))) -> Número de estudios de trayectoria y de egresados llevados a cabo en el año | D63: =(IF(B63="Número de estudios de trayectoria y de egresados llevados a cabo en el Año",FQ14,IF(B63="Porcentaje de programas educativos con Análisis Situacional del Trabajo (AST)",FQ15,IF(B63="Número de estudios de factibilidad elaborados",FQ16)))) -> Estudios | E63: Líneas estratégicas del PIDE del SUT o SUP 2013-2018 al que se da atención. ( 5 ). Mantener la pertinencia de los programas educativos actuales y de los de nueva creación, acorde a las necesidades de los sectores laboral y de servicios. | J63: 2021 | P63: 2022
J64: Número actual | M64: Porcentaje actual | P64: Número a lograr | S64: Porcentaje a lograr | V64: Número alcanzado | Y64: Porcentaje alcanzado
J65: 0 | M65: 0 | P65: 1 | S65: 100
B66: NOMBRE DEL INDICADOR (5.1) | C66: FÓRMULA | D66: UNIDAD DE MEDIDA | E66: META INSTITUCIONAL A 2024 PROGRAMA INSTITUCIONAL DE DESARROLLO DE LA UNIVERSIDAD | J66: CONTEXTO ACTUAL Y A FUTURO DEL INDICADOR (5.2) | V66: Total alcanzado (Se reporta en el tercer cuatrimestre) (5.3)
B67: Porcentaje de programas educativos con Análisis Situacional del Trabajo (AST) | C67: =(IF(B67="Número de estudios de trayectoria y de egresados llevados a cabo en el Año",FP14,IF(B67="Porcentaje de programas educativos con Análisis Situacional del Trabajo (AST)",FP15,IF(B67="Número de estudios de factibilidad elaborados",FP16)))) -> (Programas educativos en la institución con AST vigentes/ total de programas educativos en la institución)*100 | D67: =(IF(B67="Número de estudios de trayectoria y de egresados llevados a cabo en el Año",FQ14,IF(B67="Porcentaje de programas educativos con Análisis Situacional del Trabajo (AST)",FQ15,IF(B67="Número de estudios de factibilidad elaborados",FQ16)))) -> Análisis | E67: Líneas estratégicas del PIDE del SUT o SUP 2013-2018 al que se da atención. ( 5 ). Mantener la pertinencia de los programas educativos actuales y de los de nueva creación, acorde a las necesidades de los sectores laboral y de servicios. | J67: 2021 | P67: 2022
J68: Número actual | M68: Porcentaje actual | P68: Número a lograr | S68: Porcentaje a lograr | V68: Número alcanzado | Y68: Porcentaje alcanzado
J69: 10 | M69: =J69/16*100 -> 62.5 | P69: 10 | S69: 62.5
B70: OBJETIVO AL QUE ATIENDE DE ACUERDO AL PSE 2020-2024 (6) | D70: 6.2. Garantizar el derecho de la población en México a una educación de excelencia, pertinente y relevante en los diferentes tipos, niveles y modalidades del Sistema Educativo Nacional.
B71: CALENDARIZACIÓN Y SEGUIMIENTO DE LAS PRINCIPALES ACTIVIDADES (7)
B72: ACTIVIDADES | D72: UNIDAD DE MEDIDA | E72: META ANUAL | G72: CALENDARIO 2022 CUATRIMESTRAL | S72: JUSTIFICACIÓN DE LAS DESVIACIONES POSITIVAS O NEGATIVAS (8) | Z72: ÁREA EJECUTORA (9)
G73: 1 | K73: 2 | O73: 3
G74: PROG | I74: ALC | K74: PROG | M74: ALC | O74: PROG | Q74: ALC
G75: # | H75: % | I75: # | J75: % | K75: # | L75: % | M75: # | N75: % | O75: # | P75: % | Q75: # | R75: %
B76: Reuniones de comité de pertinencia | D76: Reuniones | E76: 9 | G76: 1 | H76: 11.11 | K76: 2 | L76: 33.33 | O76: 9 | P76: 100 | Z76: Dirección de Carrera
B77: Reunión del Comité Nacional de Directores de PE´s | D77: Reuniones | E77: =4+2+4+4 -> 14 | G77: =1+1 -> 2 | H77: =G77/E77*100 -> 14.28571429 | K77: =3+1+3+4 -> 11 | L77: =K77/E77*100 -> 78.57142857 | O77: =4+2+4+4 -> 14 | P77: =O77/E77*100 -> 100 | Z77: Dirección de Carrera de ER, MI y DN (4), TIyASP (4), GA(2), TUyTF(4)
B78: Encuestas de Trayectoria Educativa | D78: Encuesta | E78: 1 | O78: 1 | P78: 100 | Z78: Planeación y Educación
B81: DESCRIPCIÓN DEL ALCANCE DEL INDICADOR Y EFECTO SOCIOECONOMICO (10)
B82: Mantener PE pertinentes a nuestra área de influencia.
B84: Mtra. Carmina Yadira Regalado Mardueño | P84: Lic. Victor Manuel Benítez Pérez
B85: NOMBRE Y FIRMA DEL/LA RECTOR(A) | Q85: NOMBRE Y FIRMA DE LA PERSONA RESPONSABLE DEL PROCESO
B90: PROGRAMA OPERATIVO ANUAL 2022
B91: FORMATO 01 "DESARROLLO DE PROCESOS"
B93: UNIVERSIDAD: Universidad Tecnológica de Bahía de Banderas
B95: DENOMINACIÓN DEL PROCESO: ACADÉMICO (1) | Q95: NUM. DE PRCESO | Y95: TIPO DE PROCESO (3)
Q97: 2.2 | Y97: Eficacia
B99: ÁREA RESPONSABLE ( 4 )
B101: PRENSA Y DIFUSIÓN
B102: INDICADORES ( 5 )
B103: NOMBRE DEL INDICADOR (5.1) | C103: FÓRMULA | D103: UNIDAD DE MEDIDA | E103: META INSTITUCIONAL A 2024 PROGRAMA INSTITUCIONAL DE DESARROLLO DE LA UNIVERSIDAD | J103: CONTEXTO ACTUAL Y A FUTURO DEL INDICADOR (5.2) | V103: Total alcanzado (Se reporta en el tercer cuatrimestre) (5.3)
B104: Número de estudiantes inscritos en TSU | C104: =(IF(B104="Número de estudiantes inscritos en TSU",FP19,IF(B104="Número de estudiantes inscritos en Licenciatura",FP20,IF(B104="Tasa de egreso por cohorte generacional de TSU",FP21,IF(B104="Tasa de egreso por cohorte generacional de Licenciatura",FP22,IF(B104="Retención escolar",FP23)))))) -> Número de estudiantes inscritos en TSU | D104: =(IF(B104="Número de estudiantes inscritos en TSU",FQ19,IF(B104="Número de estudiantes inscritos en Licenciatura",FQ20,IF(B104="Tasa de egreso por cohorte generacional de TSU",FQ21,IF(B104="Tasa de egreso por cohorte generacional de Licenciatura",FQ22,IF(B104="Retención escolar",FQ23)))))) -> Estudiantes | E104: Líneas estratégicas del PIDE del SUT o SUP 2013-2018 al que se da atención. ( 5 ). Establecer criterios de eficiencia que hagan posible la utilización plena de la capacidad instalada | J104: 2021 | P104: 2022
J105: Número actual | M105: Porcentaje actual | P105: Número a lograr | S105: Porcentaje a lograr | V105: Número alcanzado | Y105: Porcentaje alcanzado
J106: 630 | M106: 100 | P106: 1100 | S106: 100
B108: NOMBRE DEL INDICADOR (5.1) | C108: FÓRMULA | D108: UNIDAD DE MEDIDA | E108: META INSTITUCIONAL A 2024 PROGRAMA INSTITUCIONAL DE DESARROLLO DE LA UNIVERSIDAD | J108: CONTEXTO ACTUAL Y A FUTURO DEL INDICADOR (5.2) | V108: Total alcanzado (Se reporta en el tercer cuatrimestre) (5.3)
B109: Número de estudiantes inscritos en Licenciatura | C109: =(IF(B109="Número de estudiantes inscritos en TSU",FP19,IF(B109="Número de estudiantes inscritos en Licenciatura",FP20,IF(B109="Tasa de egreso por cohorte generacional de TSU",FP21,IF(B109="Tasa de egreso por cohorte generacional de Licenciatura",FP22,IF(B109="Retención escolar",FP23)))))) -> Número de estudiantes inscritos en Licenciatura | D109: =(IF(B109="Número de estudiantes inscritos en TSU",FQ19,IF(B109="Número de estudiantes inscritos en Licenciatura",FQ20,IF(B109="Tasa de egreso por cohorte generacional de TSU",FQ21,IF(B109="Tasa de egreso por cohorte generacional de Licenciatura",FQ22,IF(B109="Retención escolar",FQ23)))))) -> Estudiantes | E109: Líneas estratégicas del PIDE del SUT o SUP 2013-2018 al que se da atención. ( 5 ). Establecer criterios de eficiencia que hagan posible la utilización plena de la capacidad instalada | J109: 2021 | P109: 2022
J110: Número actual | M110: Porcentaje actual | P110: Número a lograr | S110: Porcentaje a lograr | V110: Número alcanzado | Y110: Porcentaje alcanzado
J111: 545 | M111: 100 | P111: 470 | S111: 100
B113: OBJETIVO AL QUE ATIENDE DE ACUERDO AL PSE 2020-2024 (6) | D113: 6.1.- Garantizar el derecho de la población en México a una educación equitativa, inclusiva, intercultural e integral, que tenga como eje principal el interés superior de las niñas, niños, adolescentes y jóvenes.
B114: CALENDARIZACIÓN Y SEGUIMIENTO DE LAS PRINCIPALES ACTIVIDADES (7)
B115: ACTIVIDADES | D115: UNIDAD DE MEDIDA | E115: META ANUAL | G115: CALENDARIO 2022 CUATRIMESTRAL | S115: JUSTIFICACIÓN DE LAS DESVIACIONES POSITIVAS O NEGATIVAS (8) | Z115: ÁREA EJECUTORA (9)
G116: 1 | K116: 2 | O116: 3
G117: PROG | I117: ALC | K117: PROG | M117: ALC | O117: PROG | Q117: ALC
G118: # | H118: % | I118: # | J118: % | K118: # | L118: % | M118: # | N118: % | O118: # | P118: % | Q118: # | R118: %
B119: Actualización de pagina web | D119: actualizaciones | E119: 80 | G119: 27 | H119: 34 | K119: 54 | L119: 68 | O119: 80 | P119: 100 | Z119: Prensa y Difusión
B120: Publicidad en medios digitales | D120: Spot, videos, banners, capsulas informativas.(personas alcanzadas) | E120: 600000 | G120: 200000 | H120: 33 | K120: 400000 | L120: 66 | O120: 600000 | P120: 100 | Z120: Prensa y Difusión
B121: Recorridos y ferias educativas con alumnos de bachillerato | D121: Alumnos de Bachillerato atendidos | E121: 2500 | G121: 1800 | H121: =G121/E121*100 -> 72 | O121: =700+G121 -> 2500 | P121: 100 | S121: 2050 | Z121: Prensa y Difusión
B122: Impresiones | D122: Folletos | E122: 3500 | G122: 3000 | H122: 85 | O122: =500+G122 -> 3500 | P122: 100 | S122: 2700 | Z122: Prensa y Difusión
B123: Podcast | D123: Entrevistas | E123: 17 | G123: 6 | H123: 35 | K123: 12 | L123: 70 | O123: 17 | P123: 100 | S123: 8 | Z123: Prensa y Difusión
B124: implementacion de Whastapp bussines | D124: Estudiantes atendidos | E124: 1000 | G124: 800 | H124: 80 | O124: 200 | P124: 100 | S124: 1000 | Z124: Prensa y Difusión
B125: Actividades de divulgación de la oferta educativa | D125: Reuniones virtuales | E125: 23 | G125: 15 | H125: 66 | O125: 23 | P125: 100 | S125: 2 | Z125: Prensa y Difusión
B126: DESCRIPCIÓN DEL ALCANCE DEL INDICADOR Y EFECTO SOCIOECONOMICO (10)
B127: Incrementar el números de jovenes nayaritas con estudios superioes en la región de Bahía de Banderas.
B130: Mtra. Carmina Yadira Regalado Mardueño | O130: Lic. Pedro Iván Serrano Del Ángel
B131: NOMBRE Y FIRMA DEL/LA RECTOR(A) | Q131: NOMBRE Y FIRMA DE LA PERSONA RESPONSABLE DEL PROCESO
B136: PROGRAMA OPERATIVO ANUAL 2022
B138: FORMATO 01 "DESARROLLO DE PROCESOS"
B140: UNIVERSIDAD: Universidad Tecnológica de Bahía de Banderas
B142: DENOMINACIÓN DEL PROCESO: ACADÉMICO (1) | Q142: NUM. DE PROCESO | Y142: TIPO DE PROCESO (3)
Q144: 2.3 | Y144: Eficacia
B146: ÁREA RESPONSABLE ( 4 )
B148: SECRETARÍA ACADÉMICA
B149: INDICADORES ( 5 )
B150: NOMBRE DEL INDICADOR (5.1) | C150: FÓRMULA | D150: UNIDAD DE MEDIDA | E150: META INSTITUCIONAL A 2024 PROGRAMA INSTITUCIONAL DE DESARROLLO DE LA UNIVERSIDAD | J150: CONTEXTO ACTUAL Y A FUTURO DEL INDICADOR (5.2) | V150: Total alcanzado (Se reporta en el tercer cuatrimestre) (5.3)
B151: Porcentaje de profesores de tiempo completo que imparten tutorías | C151: =(IF(B151="Porcentaje de profesores de tiempo completo que imparten tutorías",FP26,IF(B151="Porcentaje de estudiantes de nuevo ingreso que reciben programas de inducción",FP27,IF(B151="Programas de Tutorías",FP28,IF(B151="Atención Psicopedagógica",FP29,IF(B151="Porcentaje de alumnos que participan en programa de tutorÍas",FP30)))))) -> (Número de profesores de tiempo completo que imparten tutorías/ número de profesores de tiempo completo)*100 | D151: =(IF(B151="Porcentaje de profesores de tiempo completo que imparten tutorías",FQ26,IF(B151="Porcentaje de estudiantes de nuevo ingreso que reciben programas de inducción",FQ27,IF(B151="Programas de Tutorías",FQ28,IF(B151="Atención Psicopedagógica",FQ29,IF(B151="Porcentaje de alumnos que participan en programa de tutorÍas",FQ30)))))) -> Profesores | E151: Líneas estratégicas del PIDE del SUT o SUP 2013-2018 al que se da atención. ( 5 ). Aprovechar las experiencias exitosas de algunas Universidades Tecnológicas en temas como el Programa de Servicios de Apoyo al Estudiante (PROSAE) y el Programa Institucional de Tutorías (PIT) | J151: 2021 | P151: 2022
J152: Número actual | M152: Porcentaje actual | P152: Número a lograr | S152: Porcentaje a lograr | V152: Número alcanzado | Y152: Porcentaje alcanzado
J153: 33 | M153: 100 | P153: 33 | S153: 100
B155: NOMBRE DEL INDICADOR (5.1) | C155: FÓRMULA | D155: UNIDAD DE MEDIDA | E155: META INSTITUCIONAL A 2024 PROGRAMA INSTITUCIONAL DE DESARROLLO DE LA UNIVERSIDAD | J155: CONTEXTO ACTUAL Y A FUTURO DEL INDICADOR (5.2) | V155: Total alcanzado (Se reporta en el tercer cuatrimestre) (5.3)
B156: Porcentaje de alumnos que participan en programa de tutorÍas | C156: =(IF(B156="Porcentaje de profesores de tiempo completo que imparten tutorías",FP26,IF(B156="Porcentaje de estudiantes de nuevo ingreso que reciben programas de inducción",FP27,IF(B156="Programas de Tutorías",FP28,IF(B156="Atención Psicopedagógica",FP29,IF(B156="Porcentaje de alumnos que participan en programa de tutorÍas",FP30)))))) -> (Número de alumnos en programas de tutorías/ Total de alumnos)*100 | D156: =(IF(B156="Porcentaje de profesores de tiempo completo que imparten tutorías",FQ26,IF(B156="Porcentaje de estudiantes de nuevo ingreso que reciben programas de inducción",FQ27,IF(B156="Programas de Tutorías",FQ28,IF(B156="Atención Psicopedagógica",FQ29,IF(B156="Porcentaje de alumnos que participan en programa de tutorÍas",FQ30)))))) -> Estudiantes | E156: Líneas estratégicas del PIDE del SUT o SUP 2013-2018 al que se da atención. ( 5 ). Aprovechar las experiencias exitosas de algunas Universidades Tecnológicas en temas como el Programa de Servicios de Apoyo al Estudiante (PROSAE) y el Programa Institucional de Tutorías (PIT) | J156: 2021 | P156: 2022
J157: Número actual | M157: Porcentaje actual | P157: Número a lograr | S157: Porcentaje a lograr | V157: Número alcanzado | Y157: Porcentaje alcanzado
J158: 1175 | M158: 100 | P158: 1570 | S158: 100
B160: OBJETIVO AL QUE ATIENDE DE ACUERDO AL PSE 2020-2024 (6) | D160: 6.3.- Revalorizar a las maestras y los maestros como agentes fundamentales del proceso educativo, con pleno respeto a sus derechos, a partir de su desarrollo profesional, mejora continua y vocación de servicio.
B161: CALENDARIZACIÓN Y SEGUIMIENTO DE LAS PRINCIPALES ACTIVIDADES (7)
B162: ACTIVIDADES | D162: UNIDAD DE MEDIDA | E162: META ANUAL | G162: CALENDARIO 2022 CUATRIMESTRAL | S162: JUSTIFICACIÓN DE LAS DESVIACIONES POSITIVAS O NEGATIVAS (8) | Z162: ÁREA EJECUTORA (9)
G163: 1 | K163: 2 | O163: 3
G164: PROG | I164: ALC | K164: PROG | M164: ALC | O164: PROG | Q164: ALC
G165: # | H165: % | I165: # | J165: % | K165: # | L165: % | M165: # | N165: % | O165: # | P165: % | Q165: # | R165: %
B166: Asignar tutores para cada grupo | D166: Programación de asignación de tutores | E166: =3+3+3+3 -> 12 | G166: =1+1+1+1 -> 4 | H166: =G166/E166*100 -> 33.33333333 | K166: =2+2+2+2 -> 8 | L166: =K166/E166*100 -> 66.66666667 | O166: =3+3+3+3 -> 12 | P166: =O166/E166*100 -> 100 | Z166: Div ER (1), MI (1) y DN (1); GA (3), TIyASP (3), TUyTF (3)
B167: Impartición de tutorías | D167: Grupos tutorados | E167: =39+21+26+42 -> 128 | G167: =6+6+7+6+13 -> 38 | H167: =G167/E167*100 -> 29.6875 | K167: =4+4+G167+11+10+22 -> 89 | L167: =K167/E167*100 -> 69.53125 | O167: =39+21+26+42 -> 128 | P167: =O167/E167*100 -> 100 | Z167: Div ER, MI y DN (39); GA (21) TIyASP (26), TUyTF (42)
B171: DESCRIPCIÓN DEL ALCANCE DEL INDICADOR Y EFECTO SOCIOECONOMICO (10)
B172: Capacitar a nuestros profesores para que impartan tutorías con mejor contenido y en base al programa de tutorías que establece la CGUTYP
B175: Mtra. Carmina Yadira Regalado Mardueño | P175: Lic. Victor Manuel Benítez Pérez
B176: NOMBRE Y FIRMA DEL/LA RECTOR(A) | Q176: NOMBRE Y FIRMA DE LA PERSONA RESPONSABLE DEL PROCESO

Sheet CEDULA-vinculación
B1: PROGRAMA OPERATIVO ANUAL 2022
B3: FORMATO 01 "DESARROLLO DE PROCESOS"
B5: UNIVERSIDAD: Universidad Tecnológica de Bahía de Banderas
B7: DENOMINACIÓN DEL PROCESO: VINCULACIÓN (1) | Q7: NUM. DE PROCESO | Y7: TIPO DE PROCESO (3) | JM7: VINCULACIÓN, EMPLEABILIDAD Y EMPRENDEDURISMO | JO7: UNIDAD DE MEDIDA | JP7: MEDIA NACIONAL
JM8: Transferencia del modelo de incubación de la CGUTyP | JN8: Número de Modelos de incubación transferidos. | JO8: Transferencias | JP8: 95
Q9: 3 | Y9: Pertinencia | JM9: Número de empresas generadas anualmente, derivadas de los proyectos incubados en la Universidad sin importar cuántos se hayan incubado en total | JN9: Número total de empresas generadas anualmente, sin importar cuántos proyectos se hayan incubado en total | JO9: Empresas | JP9: 1382
JM10: Número de convenios firmados anualmente con el sector productivo | JN10: Número de convenios firmados anualmente con el sector productivo | JO10: Convenios | JP10: 10560
B11: ÁREA RESPONSABLE( 4 ) | JM11: Número de Consejos de Vinculación instalados en la Institución | JN11: Número de Consejos de Vinculación en la Institución instalados | JO11: Consejos | JP11: 109
JM12: Número de Entidades de Evaluación y Certificación | JN12: Número de Entidades de evaluación y certificación | JO12: Entidades | JP12: 85
B13: VINCULACIÓN | JM13: Número de certificados expedidos anualmente por el Centro de Certificación iCarnegie | JN13: Número de certificados expedidos anualmente por el Centro de Certificación iCarnegie | JO13: Certificados | JP13: 3858
B14: INDICADORES ( 5 ) | JM14: Número de Centros de Certificación National Instruments | JN14: Número de centros de Certificación National Instruments | JO14: Centros | JP14: 45
B15: NOMBRE DEL INDICADOR (5.1) | C15: FÓRMULA | D15: UNIDAD DE MEDIDA | E15: META INSTITUCIONAL A 2024 PROGRAMA INSTITUCIONAL DE DESARROLLO DE LA UNIVERSIDAD | J15: CONTEXTO ACTUAL Y A FUTURO DEL INDICADOR (5.2) | V15: Total alcanzado (Se reporta en el tercer cuatrimestre) (5.3) | JM15: Número de certificados expedidos anualmente por algún centro certificador. | JN15: Número de certificados expedidos anualmente por algún centro certificador. | JO15: Certificados | JP15: 3136
B16: Número de convenios firmados anualmente con el sector productivo | C16: =(IF(B16="Transferencia del modelo de incubación de la CGUTyP",JN8,IF(B16="Número de empresas generadas anualmente, derivadas de los proyectos incubados en la Universidad sin importar cuántos se hayan incubado en total",JN9,IF(B16="Número total de empleos generados anualmente por las empresas incubadas",#REF!,IF(B16="Número de convenios firmados anualmente con el sector productivo ",JN10,IF(B16="Número de Consejos de Vinculación instalados en la Institución ",JN11,IF(B16="Número de Entidades de Evaluación y Certificación",JN12,IF(B16="Número de certificados expedidos anualmente por la Entidad de Evaluación y Certificación (EEC)",#REF!,IF(B16="Número de Centros de Certificación iCarnegie",#REF!,IF(B16="Número de certificados expedidos anualmente por el Centro de Certificación iCarnegie",JN13,IF(B16="Número de Centros de Certificación National Instruments",JN14,IF(B16="Número de certificados expedidos anualmente por algún Centro Certificador.",JN15,IF(B16="Porcentaje de egresados de TSU que optan por la continuidad de estudios",JN16,IF(B16="Porcentaje de egresados de TSU que obtienen empleo en 6 meses o menos",JN17,IF(B16="Porcentaje de egresados de TSU que optaron por la continuidad y que tienen empleo",JN18,IF(B16="Porcentaje de colocación, en 6 meses o menos, de los egresados de Ingeniería",JN19,IF(B16="Porcentaje de colocación de los egresados en su área de competencia",JN20))))))))))))))))) -> Número de convenios firmados anualmente con el sector productivo | D16: =(IF(B16="Transferencia del modelo de incubación de la CGUTyP",JO8,IF(B16="Número de empresas generadas anualmente, derivadas de los proyectos incubados en la Universidad sin importar cuántos se hayan incubado en total",JO9,IF(B16="Número total de empleos generados anualmente por las empresas incubadas",#REF!,IF(B16="Número de convenios firmados anualmente con el sector productivo ",JO10,IF(B16="Número de Consejos de Vinculación instalados en la Institución ",JO11,IF(B16="Número de Entidades de Evaluación y Certificación",JO12,IF(B16="Número de certificados expedidos anualmente por la Entidad de Evaluación y Certificación (EEC)",#REF!,IF(B16="Número de Centros de Certificación iCarnegie",#REF!,IF(B16="Número de certificados expedidos anualmente por el Centro de Certificación iCarnegie",JO13,IF(B16="Número de Centros de Certificación National Instruments",JO14,IF(B16="Número de certificados expedidos anualmente por algún centro certificador.",JO15,IF(B16="Porcentaje de egresados de TSU que optan por la continuidad de estudios",JO16,IF(B16="Porcentaje de egresados de TSU que obtienen empleo en 6 meses o menos",JO17,IF(B16="Porcentaje de egresados de TSU que optaron por la continuidad y que tienen empleo",JO18,IF(B16="Porcentaje de colocación, en 6 meses o menos, de los egresados de Ingeniería",JO19,IF(B16="Porcentaje de colocación de los egresados en su área de competencia",JO20))))))))))))))))) -> Convenios | E16: Líneas estratégicas del PIDE del SUT o SUP 2022-2027 al que se da atención. ( 5 ). Generalizar la creación de órganos institucionales de vinculación, perfeccionando los mecanismos de interacción con las empresas. | J16: 2021 | P16: 2022 | JM16: Porcentaje de egresados de TSU que optan por la continuidad de estudios | JN16: (Número de egresados de TSU que optan por la continuidad de estudios/número de egresados de TSU en el año t)*100 | JO16: Alumnos | JP16: 48
J17: Número actual | M17: Porcentaje actual | P17: Número a lograr | S17: Porcentaje a lograr | V17: Número alcanzado | Y17: Porcentaje alcanzado | JM17: Porcentaje de egresados de TSU que obtienen empleo en 6 meses o menos | JN17: (Número de egresados de TSU que obtienen trabajo en 6 meses o menos/número de estudiantes egresados de TSU en el año t)*100 | JO17: Alumnos | JP17: 89
J18: 556 | M18: 100 | P18: 621 | S18: 100 | JM18: Porcentaje de egresados de TSU que optaron por la continuidad y que tienen empleo | JN18: (Número de egresados de TSU que optaron por la continuidad y que tienen empleo/número de egresados de TSU) *100 | JO18: Alumnos | JP18: 25
B19: NOMBRE DEL INDICADOR (5.1) | C19: FÓRMULA | D19: UNIDAD DE MEDIDA | E19: META INSTITUCIONAL A 2024 PROGRAMA INSTITUCIONAL DE DESARROLLO DE LA UNIVERSIDAD | J19: CONTEXTO ACTUAL Y A FUTURO DEL INDICADOR (5.2) | V19: Total alcanzado (Se reporta en el tercer cuatrimestre) (5.3) | JM19: Porcentaje de colocación, en 6 meses o menos, de los egresados de Ingeniería | JN19: (Número de egresados de Ingeniería que encontraron colocación en el sector productivo, en 6 meses o menos/número de egresados de Ingeniería)*100 | JO19: Alumnos | JP19: 86
B20: Porcentaje de egresados de TSU que optan por la continuidad de estudios | C20: =(IF(B20="Transferencia del modelo de incubación de la CGUTyP",JN8,IF(B20="Número de empresas generadas anualmente, derivadas de los proyectos incubados en la Universidad sin importar cuántos se hayan incubado en total",JN9,IF(B20="Número total de empleos generados anualmente por las empresas incubadas",#REF!,IF(B20="Número de convenios firmados anualmente con el sector productivo ",JN10,IF(B20="Número de Consejos de Vinculación instalados en la Institución ",JN11,IF(B20="Número de Entidades de Evaluación y Certificación",JN12,IF(B20="Número de certificados expedidos anualmente por la Entidad de Evaluación y Certificación (EEC)",#REF!,IF(B20="Número de Centros de Certificación iCarnegie",#REF!,IF(B20="Número de certificados expedidos anualmente por el Centro de Certificación iCarnegie",JN13,IF(B20="Número de Centros de Certificación National Instruments",JN14,IF(B20="Número de certificados expedidos anualmente por algún Centro Certificador.",JN15,IF(B20="Porcentaje de egresados de TSU que optan por la continuidad de estudios",JN16,IF(B20="Porcentaje de egresados de TSU que obtienen empleo en 6 meses o menos",JN17,IF(B20="Porcentaje de egresados de TSU que optaron por la continuidad y que tienen empleo",JN18,IF(B20="Porcentaje de colocación, en 6 meses o menos, de los egresados de Ingeniería",JN19,IF(B20="Porcentaje de colocación de los egresados en su área de competencia",JN20))))))))))))))))) -> (Número de egresados de TSU que optan por la continuidad de estudios/número de egresados de TSU en el año t)*100 | D20: =(IF(B20="Transferencia del modelo de incubación de la CGUTyP",JO8,IF(B20="Número de empresas generadas anualmente, derivadas de los proyectos incubados en la Universidad sin importar cuántos se hayan incubado en total",JO9,IF(B20="Número total de empleos generados anualmente por las empresas incubadas",#REF!,IF(B20="Número de convenios firmados anualmente con el sector productivo ",JO10,IF(B20="Número de Consejos de Vinculación instalados en la Institución ",JO11,IF(B20="Número de Entidades de Evaluación y Certificación",JO12,IF(B20="Número de certificados expedidos anualmente por la Entidad de Evaluación y Certificación (EEC)",#REF!,IF(B20="Número de Centros de Certificación iCarnegie",#REF!,IF(B20="Número de certificados expedidos anualmente por el Centro de Certificación iCarnegie",JO13,IF(B20="Número de Centros de Certificación National Instruments",JO14,IF(B20="Número de certificados expedidos anualmente por algún centro certificador.",JO15,IF(B20="Porcentaje de egresados de TSU que optan por la continuidad de estudios",JO16,IF(B20="Porcentaje de egresados de TSU que obtienen empleo en 6 meses o menos",JO17,IF(B20="Porcentaje de egresados de TSU que optaron por la continuidad y que tienen empleo",JO18,IF(B20="Porcentaje de colocación, en 6 meses o menos, de los egresados de Ingeniería",JO19,IF(B20="Porcentaje de colocación de los egresados en su área de competencia",JO20))))))))))))))))) -> Alumnos | E20: Líneas estratégicas del PIDE del SUT o SUP 2013-2018 al que se da atención. ( 5 ). Generalizar la creación de órganos institucionales de vinculación, perfeccionando los mecanismos de interacción con las empresas. | J20: 2021 | P20: 2022 | JM20: Porcentaje de colocación de los egresados en su área de competencia | JN20: (Número de egresados que tienen trabajo en su área de competencia / número de egresados que tienen empleo) *100 | JO20: Alumnos | JP20: 69
J21: Número actual | M21: Porcentaje actual | P21: Número a lograr | S21: Porcentaje a lograr | V21: Número alcanzado | Y21: Porcentaje alcanzado | JM21: NUEVOS MODELOS DE COOPERACIÓN PARA LA INTERNACIONALIZACIÓN DE LA EDUCACIÓN SUPERIORINDICADOR | JN21: FÓRMULA | JO21: UNIDAD DE MEDIDA | JP21: MEDIA NACIONAL
J22: 251 | M22: 96 | P22: 208 | S22: 100 | JM22: Número de estudiantes inscritos en programas de intercambio o movilidad en instituciones extranjeras | JN22: Número de estudiantes inscritos en programas de intercambio o movilidad en instituciones extranjeras | JO22: Estudiantes | JP22: 3441
B23: OBJETIVO AL QUE ATIENDE DE ACUERDO AL PSE 2020-2024 (6) | D23: 6.1.- Garantizar el derecho de la población en México a una educación equitativa, inclusiva, intercultural e integral, que tenga como eje principal el interés superior de las niñas, niños, adolescentes y jóvenes. 6.4 Generar entornos favorables para el proceso de enseñanza-aprendizaje en los diferentes tipos, niveles y modalidades del Sistema Educativo Nacional. | JM23: Número de estudiantes extranjeros inscritos en programas de intercambio en nuestras instituciones | JN23: Número de estudiantes extranjeros inscritos en programas de intercambio en nuestras instituciones. | JO23: Estudiantes | JP23: 588
JM24: Número de profesores extranjeros en programas de intercambio en instituciones nacionales | JN24: Número de profesores extranjeros en programas de intercambio en instituciones nacionales | JO24: Profesores | JP24: 270
B25: CALENDARIZACIÓN Y SEGUIMIENTO DE LAS PRINCIPALES ACTIVIDADES (7) | JM25: Número de profesores en programas de intercambio en instituciones internacionales | JN25: Número de profesores en programas de intercambio en instituciones internacionales | JO25: Profesores | JP25: 713
B26: ACTIVIDADES | D26: UNIDAD DE MEDIDA | E26: META ANUAL | G26: CALENDARIO 2022 CUATRIMESTRAL | S26: JUSTIFICACIÓN DE LAS DESVIACIONES POSITIVAS O NEGATIVAS (8) | Z26: ÁREA EJECUTORA (9) | JM26: Número de programas de lengua extranjera que se imparten en la institución | JN26: Número de programas de lengua extranjera que se imparten en la institución | JO26: Programas | JP26: 72
G27: 1 | K27: 2 | O27: 3 | JM27: Porcentaje de profesores que imparten una lengua extranjera y que están certificados | JN27: (Número de profesores que imparte una lengua extranjera y que están certificados/ número de profesores que imparte una lengua extranjera)*100 | JO27: Profesores | JP27: 79
G28: PROG | I28: ALC | K28: PROG | M28: ALC | O28: PROG | Q28: ALC | JM28: Número de convenios firmados con Universidades extranjeras para la movilidad estudiantil | JN28: Número de convenios firmados con Universidades extranjeras para la movilidad estudiantil. | JO28: Convenios | JP28: 506
G29: # | H29: % | I29: # | J29: % | K29: # | L29: % | M29: # | N29: % | O29: # | P29: % | Q29: # | R29: %
B30: Firma de Convenios con el Sector Productivo Nacional e Internacional | D30: Convenios | E30: 50 | G30: 20 | H30: 40 | K30: 30 | L30: 60 | O30: 50 | P30: 100 | Z30: Vinculacion | JM30: PROMOCIÓN Y DIFUSIÓN DEL ARTE Y LA CULTURA
B31: Firma de Convenios con el Sector Productivo para Programa Dual | D31: Convenios | E31: 15 | G31: 5 | H31: 33.3 | K31: 10 | L31: 67 | O31: 15 | P31: 100 | Z31: Vinculacion | JM31: Presentaciones artísticas y culturales | JN31: Número de presentaciones anuales de danza, múscia, teatro, festivales, entre otros | JO31: Presentaciones | JP31: 2789
B32: Visitas a empresas para reactivar y generar convenios Locales y Nacionales | D32: Visitas | E32: 15 | G32: 5 | H32: 33.3 | K32: =G32+5 -> 10 | L32: 66.6 | O32: =K32+5 -> 15 | P32: 100 | Z32: Vinculacion | JM32: Alumnos que participan en actividades culturales y artísticas | JN32: Número de alumnos que participan en actividades culturales y artísticas/ total de alumnos*100 | JO32: Alumnos | JP32: 70842
B33: Aplicación de cuestionarios a los recien egresados como TSU | D33: Cuestionarios | E33: 500 | G33: 0 | H33: 0 | K33: 250 | L33: 50 | O33: 500 | P33: 100 | Z33: Vinculacion
B34: Reunión con empresarios para establecer alianzas estratégicas en el tema de empleabilidad | D34: Reunión | E34: 3 | G34: 1 | H34: 33 | K34: 2 | L34: 100 | O34: 3 | P34: 100 | Z34: Vinculacion | JM34: FORTALECIMIENTO DE LA PRÁCTICA DE ACTIVIDADES FÍSICAS Y DEPORTIVAS
B35: Difundir la Bolsa de trabajo | D35: Presentaciones | E35: 200 | G35: 90 | H35: =G35/E35*100 -> 45 | K35: =40+G35 -> 130 | L35: =K35/E35*100 -> 65 | O35: =70+K35 -> 200 | P35: =O35/E35*100 -> 100 | Z35: Vinculacion | JM35: INDICADOR | JN35: FÓRMULA | JO35: 2016
B36: DESCRIPCIÓN DEL ALCANCE DEL INDICADOR Y EFECTO SOCIOECONOMICO (10) | JM36: Torneos deportivos | JN36: Número de torneos deportivos anuales internos y externos en los que participará la institución | JO36: Torneos | JP36: 1960
B37: Generación de nuevas alianzas estratégicas con el sector productivo para el incremento de las oportunidades laborales de nuestros egresados. | JM37: Participantes en torneos deportivos | JN37: Número de alumnos que participarán en los torneos internos y externos en los que participará la institución/ total de alumnos *100 | JO37: Alumnos | JP37: 69292
JM38: TIPO DE PROCESO
B39: Mtra. Carmina Yadira Regalado Mardueño | P39: Lic. Gladis Valdés Torres | JM39: Eficiencia
B40: NOMBRE Y FIRMA DEL/LA RECTOR(A) | Q40: NOMBRE Y FIRMA DE LA PERSONA RESPONSABLE DEL PROCESO | JM40: Eficacia
JM41: Pertinencia
JM42: Vinculación
JM43: Equidad de Género
B45: PROGRAMA OPERATIVO ANUAL 2022
B47: FORMATO 01 "DESARROLLO DE PROCESOS"
B49: UNIVERSIDAD: Universidad Tecnológica de Bahía de Banderas
B51: DENOMINACIÓN DEL PROCESO: VINCULACIÓN (1) | Q51: NUM. DE PROCESO | Y51: TIPO DE PROCESO (3)
Q53: 3.1 | Y53: Pertinencia
B55: ÁREA RESPONSABLE( 4 )
B57: VINCULACIÓN
B58: INDICADORES ( 5 )
B59: NOMBRE DEL INDICADOR (5.1) | C59: FÓRMULA | D59: UNIDAD DE MEDIDA | E59: META INSTITUCIONAL A 2024 PROGRAMA INSTITUCIONAL DE DESARROLLO DE LA UNIVERSIDAD | J59: CONTEXTO ACTUAL Y A FUTURO DEL INDICADOR (5.2) | V59: Total alcanzado (Se reporta en el tercer cuatrimestre) (5.3)
B60: Número de estudiantes inscritos en programas de intercambio o movilidad en instituciones extranjeras | C60: =(IF(B60="Número de estudiantes inscritos en programas de intercambio o movilidad en instituciones extranjeras",JN22,IF(B60="Número de estudiantes extranjeros inscritos en programas de intercambio en nuestras instituciones",JN23,IF(B60="Número de profesores extranjeros en programas de intercambio en instituciones nacionales",JN24,IF(B60="Número de profesores en programas de intercambio en instituciones internacionales",JN25,IF(B60="Número de programas de lengua extranjera que se imparten en la institución",JN26,IF(B60="Porcentaje de profesores que imparten una lengua extranjera y que están certificados",JN27,IF(B60="Número de convenios firmados con Universidades extranjeras para la movilidad estudiantil",JN28,IF(B60="Participación de la institución como U-BIS",#REF!))))))))) -> Número de estudiantes inscritos en programas de intercambio o movilidad en instituciones extranjeras | D60: =(IF(B60="Número de estudiantes inscritos en programas de intercambio o movilidad en instituciones extranjeras",JO22,IF(B60="Número de estudiantes extranjeros inscritos en programas de intercambio en nuestras instituciones",JO23,IF(B60="Número de profesores extranjeros en programas de intercambio en instituciones nacionales",JO24,IF(B60="Número de profesores en programas de intercambio en instituciones internacionales",JO25,IF(B60="Número de programas de lengua extranjera que se imparten en la institución",JO26,IF(B60="Porcentaje de profesores que imparten una lengua extranjera y que están certificados",JO27,IF(B60="Número de convenios firmados con Universidades extranjeras para la movilidad estudiantil",JO28,IF(B60="Participación de la institución como U-BIS",#REF!))))))))) -> Estudiantes | E60: Líneas estratégicas del PIDE del SUT o SUP 2013-2018 al que se da atención. ( 5 ). Crear programas permanentes de movilidad estudiantil y docente. | J60: 2021 | P60: 2022
J61: Número actual | M61: Porcentaje actual | P61: Número a lograr | S61: Porcentaje a lograr | V61: Número alcanzado | Y61: Porcentaje alcanzado
J62: 1 | M62: 100 | P62: 3 | S62: 100
B63: NOMBRE DEL INDICADOR (5.1) | C63: FÓRMULA | D63: UNIDAD DE MEDIDA | E63: META INSTITUCIONAL A 2024 PROGRAMA INSTITUCIONAL DE DESARROLLO DE LA UNIVERSIDAD | J63: CONTEXTO ACTUAL Y A FUTURO DEL INDICADOR (5.2) | V63: Total alcanzado (Se reporta en el tercer cuatrimestre) (5.3)
B64: Número de profesores extranjeros en programas de intercambio en instituciones nacionales | C64: =(IF(B64="Número de estudiantes inscritos en programas de intercambio o movilidad en instituciones extranjeras",JN22,IF(B64="Número de estudiantes extranjeros inscritos en programas de intercambio en nuestras instituciones",JN23,IF(B64="Número de profesores extranjeros en programas de intercambio en instituciones nacionales",JN24,IF(B64="Número de profesores en programas de intercambio en instituciones internacionales",JN25,IF(B64="Número de programas de lengua extranjera que se imparten en la institución",JN26,IF(B64="Porcentaje de profesores que imparten una lengua extranjera y que están certificados",JN27,IF(B64="Número de convenios firmados con Universidades extranjeras para la movilidad estudiantil",JN28,IF(B64="Participación de la institución como U-BIS",#REF!))))))))) -> Número de profesores extranjeros en programas de intercambio en instituciones nacionales | D64: =(IF(B64="Número de estudiantes inscritos en programas de intercambio o movilidad en instituciones extranjeras",JO22,IF(B64="Número de estudiantes extranjeros inscritos en programas de intercambio en nuestras instituciones",JO23,IF(B64="Número de profesores extranjeros en programas de intercambio en instituciones nacionales",JO24,IF(B64="Número de profesores en programas de intercambio en instituciones internacionales",JO25,IF(B64="Número de programas de lengua extranjera que se imparten en la institución",JO26,IF(B64="Porcentaje de profesores que imparten una lengua extranjera y que están certificados",JO27,IF(B64="Número de convenios firmados con Universidades extranjeras para la movilidad estudiantil",JO28,IF(B64="Participación de la institución como U-BIS",#REF!))))))))) -> Profesores | E64: Líneas estratégicas del PIDE del SUT o SUP 2013-2018 al que se da atención. ( 5 ). Crear programas permanentes de movilidad estudiantil y docente. | J64: 2021 | P64: 2022
J65: Número actual | M65: Porcentaje actual | P65: Número a lograr | S65: Porcentaje a lograr | V65: Número alcanzado | Y65: Porcentaje alcanzado
J66: 1 | M66: 100 | P66: 2 | S66: 100
B67: OBJETIVO AL QUE ATIENDE DE ACUERDO AL PSE 2020-2024 (6) | D67: 6.1.- Garantizar el derecho de la población en México a una educación equitativa, inclusiva, intercultural e integral, que tenga como eje principal el interés superior de las niñas, niños, adolescentes y jóvenes. 6.4 Generar entornos favorables para el proceso de enseñanza-aprendizaje en los diferentes tipos, niveles y modalidades del Sistema Educativo Nacional.
B68: CALENDARIZACIÓN Y SEGUIMIENTO DE LAS PRINCIPALES ACTIVIDADES (7)
B69: ACTIVIDADES | D69: UNIDAD DE MEDIDA | E69: META ANUAL | G69: CALENDARIO 2022 CUATRIMESTRAL | S69: JUSTIFICACIÓN DE LAS DESVIACIONES POSITIVAS O NEGATIVAS (8) | Z69: ÁREA EJECUTORA (9)
G70: 1 | K70: 2 | O70: 3
G71: PROG | I71: ALC | K71: PROG | M71: ALC | O71: PROG | Q71: ALC
G72: # | H72: % | I72: # | J72: % | K72: # | L72: % | M72: # | N72: % | O72: # | P72: % | Q72: # | R72: %
B73: Generar Convenios Internacionales con Instituciones Educativas | D73: Convenios Internacionales | E73: 10 | G73: 3 | H73: =G73/E73*100 -> 30 | K73: =3+G73 -> 6 | L73: =K73/E73*100 -> 60 | O73: =4+K73 -> 10 | P73: =O73/E73*100 -> 100 | Z73: Vinculacion
B74: Difusion de Convocatorias Academica Internacional | D74: Convocatorias Academicas Internacionales difundidas | E74: 10 | G74: 3 | H74: =G74/E74*100 -> 30 | K74: =3+G74 -> 6 | L74: =K74/E74*100 -> 60 | O74: =4+K74 -> 10 | P74: =O74/E74*100 -> 100 | Z74: Vinculacion
B75: Cursos de nivelaciòn de idiomas para alumnos | D75: Cursos | E75: 3 | G75: 1 | H75: =G75/E75*100 -> 33.33333333 | K75: =1+G75 -> 2 | L75: =K75/E75*100 -> 66.66666667 | O75: =1+K75 -> 3 | P75: =O75/E75*100 -> 100 | Z75: Vinculacion
B76: Convocatoria dirigida a Profesores extranjeros para realizar actividades academicas en la Institución | D76: Convocatoria | E76: 6 | K76: 3 | L76: =K76/E76*100 -> 50 | O76: =3+K76 -> 6 | P76: =O76/E76*100 -> 100 | Z76: Vinculacion
B78: DESCRIPCIÓN DEL ALCANCE DEL INDICADOR Y EFECTO SOCIOECONOMICO (10)
B79: La Generación de Vinculos con Instituciones Extranjeras genera el posicionamiento internacional de la Institución ampliando la visión de los estudiantes generando nuevos hombres de negocios, con visión de emprendimiento.
B81: Mtra. Carmina Yadira Regalado Mardueño | P81: Lic. Gladis Valdés Torres
B82: NOMBRE Y FIRMA DEL/LA RECTOR(A) | Q82: NOMBRE Y FIRMA DE LA PERSONA RESPONSABLE DEL PROCESO
B87: PROGRAMA OPERATIVO ANUAL 2022
B89: FORMATO 01 "DESARROLLO DE PROCESOS"
B91: UNIVERSIDAD: Universidad Tecnológica de Bahía de Banderas
B93: DENOMINACIÓN DEL PROCESO: VINCULACIÓN (1) | Q93: NUM. DE PRCESO | Y93: TIPO DE PROCESO (3)
Q95: 3.2 | Y95: Pertinencia
B97: ÁREA RESPONSABLE ( 4 )
B99: EXTRACURRICULARES
B100: INDICADORES ( 5 )
B101: NOMBRE DEL INDICADOR (5.1) | C101: FÓRMULA | D101: UNIDAD DE MEDIDA | E101: META INSTITUCIONAL A 2024 PROGRAMA INSTITUCIONAL DE DESARROLLO DE LA UNIVERSIDAD | J101: CONTEXTO ACTUAL Y A FUTURO DEL INDICADOR (5.2) | V101: Total alcanzado (Se reporta en el tercer cuatrimestre) (5.3)
B102: Alumnos que participan en actividades culturales y artísticas | C102: =(IF(B102="Presentaciones artísticas y culturales",JN31,IF(B102="Alumnos que participan en actividades culturales y artísticas",JN32))) -> Número de alumnos que participan en actividades culturales y artísticas/ total de alumnos*100 | D102: =(IF(B102="Presentaciones artísticas y culturales",JO31,IF(B102="Alumnos que participan en actividades culturales y artísticas",JO32))) -> Alumnos | E102: Líneas estratégicas del PIDE del SUT o SUP 2013-2018 al que se da atención. ( 5 ). Fomentar la formación integral de los estudiantes mediante actividades extracurriculares que propicien el aprecio por la cultura y las artes. | J102: 2021 | P102: 2022
J103: Número actual | M103: Porcentaje actual | P103: Número a lograr | S103: Porcentaje a lograr | V103: Número alcanzado | Y103: Porcentaje alcanzado
J104: 200 | M104: =200/1175*100 -> 17.0212766 | P104: 500 | S104: =500/1570*100 -> 31.84713376
B105: NOMBRE DEL INDICADOR (5.1) | C105: FÓRMULA | D105: UNIDAD DE MEDIDA | E105: META INSTITUCIONAL A 2024 PROGRAMA INSTITUCIONAL DE DESARROLLO DE LA UNIVERSIDAD | J105: CONTEXTO ACTUAL Y A FUTURO DEL INDICADOR (5.2) | V105: Total alcanzado (Se reporta en el tercer cuatrimestre) (5.3)
B106: Presentaciones artísticas y culturales | C106: =(IF(B106="Presentaciones artísticas y culturales",JN31,IF(B106="Alumnos que participan en actividades culturales y artísticas",JN32))) -> Número de presentaciones anuales de danza, múscia, teatro, festivales, entre otros | D106: =(IF(B106="Presentaciones artísticas y culturales",JO31,IF(B106="Alumnos que participan en actividades culturales y artísticas",JO32))) -> Presentaciones | E106: Líneas estratégicas del PIDE del SUT o SUP 2013-2018 al que se da atención. ( 5 ). Fomentar la formación integral de los estudiantes mediante actividades extracurriculares que propicien el aprecio por la cultura y las artes. | J106: 2021 | P106: 2022
J107: Número actual | M107: Porcentaje actual | P107: Número a lograr | S107: Porcentaje a lograr | V107: Número alcanzado | Y107: Porcentaje alcanzado
J108: 16 | M108: 100 | P108: 16 | S108: 100
B109: OBJETIVO AL QUE ATIENDE DE ACUERDO AL PSE 2020-2024 (6) | D109: 6.5.- Relevancia del Objetivo prioritario 5: Garantizar el derecho a la cultura física y a la práctica del deporte de la población en México con énfasis en la integración de las comunidades escolares, la inclusión social y la promoción de estilos de vida saludables
B110: CALENDARIZACIÓN Y SEGUIMIENTO DE LAS PRINCIPALES ACTIVIDADES (7)
B111: ACTIVIDADES | D111: UNIDAD DE MEDIDA | E111: META ANUAL | G111: CALENDARIO 2022 CUATRIMESTRAL | S111: JUSTIFICACIÓN DE LAS DESVIACIONES POSITIVAS O NEGATIVAS (8) | Z111: ÁREA EJECUTORA (9)
G112: 1 | K112: 2 | O112: 3
G113: PROG | I113: ALC | K113: PROG | M113: ALC | O113: PROG | Q113: ALC
G114: # | H114: % | I114: # | J114: % | K114: # | L114: % | M114: # | N114: % | O114: # | P114: % | Q114: # | R114: %
B115: Promoción de la cultura al interior del plantel | D115: Presentaciones | E115: 16 | G115: 3 | H115: 18.75 | K115: =6+G115 -> 9 | L115: 56.25 | O115: =7+K115 -> 16 | P115: 100 | Z115: Actividades Extracurriculares
B116: Participación de encuentros culturales del Comite Nacional | D116: Participacion | E116: 1 | K116: 1 | L116: 100 | Z116: Actividades Extracurriculares
B117: Concursos o Eventos Culturales en el Municipio. | D117: Participacion | E117: 3 | O117: 3 | P117: 100 | Z117: Actividades Extracurriculares
B118: Concursos o Eventos Deportivos en el Regional. | D118: Presentaciones | E118: 1 | O118: 1 | P118: 100 | Z118: Actividades Extracurriculares
B120: DESCRIPCIÓN DEL ALCANCE DEL INDICADOR Y EFECTO SOCIOECONOMICO (10)
B121: Crear una identidad institucional en nuestros alumnos, así como fomentar la cultura y las artes en los jovenes de nuestra región.
B124: Mtra. Carmina Yadira Regalado Mardueño | O124: Lic. Victor Manuel Benítez Pérez
B125: NOMBRE Y FIRMA DEL/LA RECTOR(A) | Q125: NOMBRE Y FIRMA DE LA PERSONA RESPONSABLE DEL PROCESO
B130: PROGRAMA OPERATIVO ANUAL 2022
B132: FORMATO 01 "DESARROLLO DE PROCESOS"
B134: UNIVERSIDAD: Universidad Tecnológica de Bahía de Banderas
B136: DENOMINACIÓN DEL PROCESO: VINCULACIÓN (1) | Q136: NUM. DE PROCESO | Y136: TIPO DE PROCESO (3)
Q138: 3.3 | Y138: Pertinencia
B140: ÁREA RESPONSABLE ( 4 )
B142: EXTRACURRICULARES
B143: INDICADORES ( 5 )
B144: NOMBRE DEL INDICADOR (5.1) | C144: FÓRMULA | D144: UNIDAD DE MEDIDA | E144: META INSTITUCIONAL A 2024 PROGRAMA INSTITUCIONAL DE DESARROLLO DE LA UNIVERSIDAD | J144: CONTEXTO ACTUAL Y A FUTURO DEL INDICADOR (5.2) | V144: Total alcanzado (Se reporta en el tercer cuatrimestre) (5.3)
B145: Torneos deportivos | C145: =(IF(B145="Torneos deportivos",JN36,IF(B145="Participantes en torneos deportivos",JN37))) -> Número de torneos deportivos anuales internos y externos en los que participará la institución | D145: =(IF(B145="Torneos deportivos",JO36,IF(B145="Participantes en torneos deportivos",JO37))) -> Torneos | E145: Líneas estratégicas del PIDE del SUT o SUP 2013-2018 al que se da atención. ( 5 ). Implusar la práctica regular de actividades físicas y deportivas entre los estudiantes de las Universidades Tecnológicas. | J145: 2021 | P145: 2022
J146: Número actual | M146: Porcentaje actual | P146: Número a lograr | S146: Porcentaje a lograr | V146: Número alcanzado | Y146: Porcentaje alcanzado
J147: 11 | M147: 100 | P147: 14 | S147: 100
B148: NOMBRE DEL INDICADOR (5.1) | C148: FÓRMULA | D148: UNIDAD DE MEDIDA | E148: META INSTITUCIONAL A 2024 PROGRAMA INSTITUCIONAL DE DESARROLLO DE LA UNIVERSIDAD | J148: CONTEXTO ACTUAL Y A FUTURO DEL INDICADOR (5.2) | V148: Total alcanzado (Se reporta en el tercer cuatrimestre) (5.3)
B149: Participantes en torneos deportivos | C149: =(IF(B149="Torneos deportivos",JN36,IF(B149="Participantes en torneos deportivos",JN37))) -> Número de alumnos que participarán en los torneos internos y externos en los que participará la institución/ total de alumnos *100 | D149: =(IF(B149="Torneos deportivos",JO36,IF(B149="Participantes en torneos deportivos",JO37))) -> Alumnos | E149: Líneas estratégicas del PIDE del SUT o SUP 2013-2018 al que se da atención. ( 5 ). Implusar la práctica regular de actividades físicas y deportivas entre los estudiantes de las Universidades Tecnológicas. | J149: 2021 | P149: 2022
J150: Número actual | M150: Porcentaje actual | P150: Número a lograr | S150: Porcentaje a lograr | V150: Número alcanzado | Y150: Porcentaje alcanzado
J151: 350 | M151: =J151/1175*100 -> 29.78723404 | P151: 500 | S151: =P151/1570*100 -> 31.84713376
B152: OBJETIVO AL QUE ATIENDE DE ACUERDO AL PSE 2020-2024 (6) | D152: 6.5.- Relevancia del Objetivo prioritario 5: Garantizar el derecho a la cultura física y a la práctica del deporte de la población en México con énfasis en la integración de las comunidades escolares, la inclusión social y la promoción de estilos de vida saludables
B153: CALENDARIZACIÓN Y SEGUIMIENTO DE LAS PRINCIPALES ACTIVIDADES (7)
B154: ACTIVIDADES | D154: UNIDAD DE MEDIDA | E154: META ANUAL | G154: CALENDARIO 2022 CUATRIMESTRAL | S154: JUSTIFICACIÓN DE LAS DESVIACIONES POSITIVAS O NEGATIVAS (8) | Z154: ÁREA EJECUTORA (9)
G155: 1 | K155: 2 | O155: 3
G156: PROG | I156: ALC | K156: PROG | M156: ALC | O156: PROG | Q156: ALC
G157: # | H157: % | I157: # | J157: % | K157: # | L157: % | M157: # | N157: % | O157: # | P157: % | Q157: # | R157: %
B158: Promoción del deporte y la cultura al interior del plantel. | D158: Eventos | E158: 9 | G158: 3 | H158: 33 | K158: 6 | L158: 67 | O158: 9 | P158: 100 | Z158: Actividades Extracurriculares
B159: Participacion de encuentros deportivos del comité nacional. | D159: Participacion. | E159: 1 | K159: 1 | L159: 100 | Z159: Actividades Extracurriculares
B160: Concursos o Eventos Deportivos en el Municipio. | D160: Participacion. | E160: 3 | O160: 3 | P160: 100 | Z160: Actividades Extracurriculares
B161: Concursos o Eventos Deportivos en el Regional. | D161: Participacion. | E161: 1 | O161: 1 | P161: 100 | Z161: Actividades Extracurriculares
B163: DESCRIPCIÓN DEL ALCANCE DEL INDICADOR Y EFECTO SOCIOECONOMICO (10)
B164: Promoción del deporte y la cultura al interior del plantel. (Actividades Extracurriculares)
B167: Mtra. Carmina Yadira Regalado Mardueño | P167: Lic. Victor Manuel Benítez Pérez
B168: NOMBRE Y FIRMA DEL/LA RECTOR(A) | Q168: NOMBRE Y FIRMA DE LA PERSONA RESPONSABLE DEL PROCESO

Sheet CEDULA -gestión
B1: PROGRAMA OPERATIVO ANUAL 2022
B3: FORMATO 01 "DESARROLLO DE PROCESOS"
B5: UNIVERSIDAD: Universidad Tecnológica de Bahía de Banderas
EX6: GESTIÓN: APROVECHAMIENTO DE LAS TIC´S
B7: DENOMINACIÓN DEL PROCESO: GESTIÓN (1) | Q7: NUM. DE PROCESO | Y7: TIPO DE PROCESO (3) | EX7: INDICADOR | EY7: FÓRMULA
EX8: Cobertura en red inalámbrica y conexión a internet | EY8: Porcentaje de cobertura en red inalámbrica y conexión a internet en la institución | EZ8: Cobertura de red inalámbrica e internet | FA8: 95
Q9: 4 | Y9: Eficacia | EX9: Equipos de cómputo | EY9: Número de equipos de cómputo anuales necesarios para mantener actualizados los programas educativos (reportar los adquiridos durante el periodo) | EZ9: equipos de cómputo | FA9: 44365
EX10: Software | EY10: Número de softwares anuales necesarios para mantener actualizados los programas educativos (reportar los adquiridos durante el periodo) | EZ10: Software | FA10: 10968
B11: ÁREA RESPONSABLE( 4 ) | EX11: Bibliotecas virtuales | EY11: Suscripción a bibliotecas virtuales. NOTA: Poner sí o no únicamente | EZ11: Suscripción | FA11: 107
EX12: Aulas inteligentes | EY12: Número de aulas inteligentes anuales establecida en la institución (reportar los adquiridos durante el periodo) | EZ12: Aulas inteligentes | FA12: 1525
B13: SISTEMAS | EX13: GESTIÓN: AMPLIACIÓN Y MEJORAMIENTO DE LA INFRAESTRUCTURA DE LA EDUCACIÓN SUPERIOR
B14: INDICADORES ( 5 ) | EX14: Edificios de docencia de dos niveles | EY14: Número de edificios de docencia de dos niveles, sin tomar en cuenta los ya existentes, necesarios para alojar el aumento de la matrícula Nota: el número de edificios de docencia de dos niveles tendrá que ser consistente con la proyección de crecimiento de matrícula de la universidad (reportar los construidos durante el periodo de análisis) | EZ14: Edificios | FA14: 48
B15: NOMBRE DEL INDICADOR (5.1) | C15: FÓRMULA | D15: UNIDAD DE MEDIDA | E15: META INSTITUCIONAL A 2024 PROGRAMA INSTITUCIONAL DE DESARROLLO DE LA UNIVERSIDAD | J15: CONTEXTO ACTUAL Y A FUTURO DEL INDICADOR (5.2) | V15: Total alcanzado (Se reporta en el tercer cuatrimestre) (5.3) | EX15: Edificios de docencia de un nivel | EY15: Número de edificios de docencia de un nivel, sin tomar en cuenta los ya existentes, necesarios para alojar el aumento de la matrícula Nota: el número de edificios de docencia de un nivel tendrá que ser consistente con la proyección de crecimiento de matrícula de la universidad (reportar los construidos durante el periodo de análisis) | EZ15: Edificios | FA15: 16
B16: Software | C16: =(IF(B16="Cobertura en red inalámbrica y conexión a internet",EY8,IF(B16="Equipos de cómputo",EY9,IF(B16="Software",EY10,IF(B16="Bibliotecas virtuales",EY11,IF(B16="Aulas inteligentes",EY12)))))) -> Número de softwares anuales necesarios para mantener actualizados los programas educativos (reportar los adquiridos durante el periodo) | D16: =(IF(B16="Cobertura en red inalámbrica y conexión a internet",EZ8,IF(B16="Equipos de cómputo",EZ9,IF(B16="Software",EZ10,IF(B16="Bibliotecas virtuales",EZ11,IF(B16="Aulas inteligentes",EZ12)))))) -> Software | E16: Líneas estratégicas del PIDE del SUT o SUP 2013-2018 al que se da atención. ( 5 ). Diseñar guías de equipamiento informático y de software necesario para implementar la sistematización de los procesos. | J16: 2021 | P16: 2022 | EX16: Edificios de laboratorios y talleres | EY16: Número de edificios de laboratorios y talleres, sin tomar en cuenta los ya existentes, necesarios para alojar el aumento de la matrícula Nota: el número de edificios de laboratorios y talleres tendrá que ser consistente con la proyección de crecimiento de matrícula de la universidad (reportar los construidos durante el periodo de análisis) | EZ16: Edificios | FA16: 57
J17: Número actual | M17: Porcentaje actual | P17: Número a lograr | S17: Porcentaje a lograr | V17: Número alcanzado | Y17: Porcentaje alcanzado | EX17: Bibliotecas | EY17: Número de edificios de biblioteca, sin tomar en cuenta los ya existentes, necesarios debido al aumento de matrícula para ofertar un servicio educativo de calidad. Nota: el número de edificios de biblioteca tendrá que ser consistente con la proyección de crecimiento de matrícula de la universidad (reportar los construidos durante el periodo de análisis) | EZ17: Edificios | FA17: 14
J18: 4 | M18: 100 | P18: 5 | S18: 100 | EX18: Número de cafeterías | EY18: Número de edificios de cafetería, sin tomar en cuenta los ya existentes, necesarios debido al aumento de matrícula para ofertar un servicio educativo de calidad. Nota: el número de edificios de cafetería tendrá que ser consistente con la proyección de crecimiento de matrícula de la universidad (reportar los construidos durante el periodo de análisis) | EZ18: Cafeterías | FA18: 16
B19: NOMBRE DEL INDICADOR (5.1) | C19: FÓRMULA | D19: UNIDAD DE MEDIDA | E19: META INSTITUCIONAL A 2024 PROGRAMA INSTITUCIONAL DE DESARROLLO DE LA UNIVERSIDAD | J19: CONTEXTO ACTUAL Y A FUTURO DEL INDICADOR (5.2) | V19: Total alcanzado (Se reporta en el tercer cuatrimestre) (5.3) | EX19: Gimnasios/auditorios | EY19: Número de edificios de gimnasio/auditorio, sin tomar en cuenta los ya existentes, necesarios debido al aumento de matrícula para ofertar un servicio educativo de calidad. Nota: el número de edificios de gimnasio/auditorio tendrá que ser consistente con la proyección de crecimiento de matrícula de la universidad (reportar los construidos durante el periodo de análisis) | EZ19: Gimnasios/auditorios | FA19: 27
B20: Equipos de cómputo | C20: =(IF(B20="Cobertura en red inalámbrica y conexión a internet",EY8,IF(B20="Equipos de cómputo",EY9,IF(B20="Software",EY10,IF(B20="Bibliotecas virtuales",EY11,IF(B20="Aulas inteligentes",EY12)))))) -> Número de equipos de cómputo anuales necesarios para mantener actualizados los programas educativos (reportar los adquiridos durante el periodo) | D20: =(IF(B20="Cobertura en red inalámbrica y conexión a internet",EZ8,IF(B20="Equipos de cómputo",EZ9,IF(B20="Software",EZ10,IF(B20="Bibliotecas virtuales",EZ11,IF(B20="Aulas inteligentes",EZ12)))))) -> equipos de cómputo | E20: Líneas estratégicas del PIDE del SUT o SUP 2013-2018 al que se da atención. ( 5 ). Diseñar guías de equipamiento informático y de software necesario para implementar la sistematización de los procesos. | J20: 2021 | P20: 2022 | EX20: Edificios de rectoría | EY20: Número de edificios de rectoría, sin tomar en cuenta los existentes, necesarios por el aumento de la matrícula para dar servicio de calidad a los alumnos. Nota: el número de edificios de rectoría tendrá que ser consistente con la proyección de crecimiento de matrícula de la universidad | EZ20: Edificios | FA20: 20
J21: Número actual | M21: Porcentaje actual | P21: Número a lograr | S21: Porcentaje a lograr | V21: Número alcanzado | Y21: Porcentaje alcanzado | EX21: Edificios de vinculación | EY21: Número de edificios de vinculación, sin tomar en cuenta los existentes, necesarios para ofertar un servicio de calidad. Nota: el número de edificios de vinculación tendrá que ser consistente con la proyección de crecimiento de matrícula de la universidad (reportar los construidos durante el periodo de análisis) | EZ21: Edificios | FA21: 23
J22: 410 | M22: 100 | P22: 338 | S22: 100 | EX22: Edificios de almacén | EY22: Número de edificios de almacén, sin tomar en cuenta los ya existentes, necesarios debido al crecimiento de la infraestructura física de la Universidad. Nota: el número de edificios de almacén tendrá que ser consistente con la proyección de crecimiento de infraestructura física de la universidad (reportar los construidos durante el periodo de análisis) | EZ22: Edificios | FA22: 25
B23: OBJETIVO AL QUE ATIENDE DE ACUERDO AL PSE 2020-2024 (6) | D23: 6.4 Generar entornos favorables para el proceso de enseñanza-aprendizaje en los diferentes tipos, niveles y modalidades del Sistema Educativo Nacional. | EX23: Canchas deportivas | EY23: Número de canchas deportivas sin tomar en cuenta las ya existentes, necesarias debido al aumento de matrícula para ofertar un servicio educativo de calidad. Nota: el número de canchas deportivas tendrá que ser consistente con la proyección de crecimiento de matrícula de la universidad (reportar los construidos durante el periodo de análisis) | EZ23: Canchas | FA23: 53
B24: CALENDARIZACIÓN Y SEGUIMIENTO DE LAS PRINCIPALES ACTIVIDADES (7) | EX24: TIPO DE PROCESO
B25: ACTIVIDADES | D25: UNIDAD DE MEDIDA | E25: META ANUAL | G25: CALENDARIO 2022 CUATRIMESTRAL | S25: JUSTIFICACIÓN DE LAS DESVIACIONES POSITIVAS O NEGATIVAS (8) | Z25: ÁREA EJECUTORA (9) | EX25: Eficiencia
G26: 1 | K26: 2 | O26: 3 | EX26: Eficacia
G27: PROG | I27: ALC | K27: PROG | M27: ALC | O27: PROG | Q27: ALC | EX27: Pertinencia
G28: # | H28: % | I28: # | J28: % | K28: # | L28: % | M28: # | N28: % | O28: # | P28: % | Q28: # | R28: % | EX28: Vinculación
B29: Baja de equipo de cómputo obsoleto no funcional | D29: Equipos de cómputo | E29: 72 | O29: 72 | P29: 100 | Z29: Sistemas | EX29: Equidad de Género
B30: Implementar Sistema de Tickets de servicio para incidencias de soporte para todos usuarios | D30: Software | E30: 1 | K30: 0.5 | L30: 50 | O30: 1 | P30: 100 | Z30: Sistemas
B31: Mantenimiento Preventivo a Equipos de Cómputo | D31: Equipos de cómputo | E31: 316 | G31: 316 | H31: 100 | K31: 316 | L31: 100 | O31: 316 | P31: 100 | Z31: Sistemas
B32: Actualización de Sistema Escolar | D32: Software | E32: 1 | O32: 1 | P32: 100 | Z32: Sistemas
B34: DESCRIPCIÓN DEL ALCANCE DEL INDICADOR Y EFECTO SOCIOECONOMICO (10)
B35: Incrementar las herramientas tecnológicas para así, poder dar un mejor servicios a nuestros estudiantes y eficientar los procesos de la institución.
B38: Mtra. Carmina Yadira Regalado Mardueño | P38: Ing. Catalina Luna Ortega
B39: NOMBRE Y FIRMA DEL/LA RECTOR(A) | Q39: NOMBRE Y FIRMA DE LA PERSONA RESPONSABLE DEL PROCESO
B44: PROGRAMA OPERATIVO ANUAL 2022
B46: FORMATO 01 "DESARROLLO DE PROCESOS"
B48: UNIVERSIDAD: Universidad Tecnológica de Bahía de Banderas
B50: DENOMINACIÓN DEL PROCESO: GESTIÓN (1) | Q50: NUM. DE PROCESO | Y50: TIPO DE PROCESO (3)
Q52: 1 (2) | Y52: Eficacia
B54: ÁREA RESPONSABLE ( 4 )
B57: INDICADORES ( 5 )
B58: NOMBRE DEL INDICADOR (5.1) | C58: FÓRMULA | D58: UNIDAD DE MEDIDA | E58: META INSTITUCIONAL A 2024 PROGRAMA INSTITUCIONAL DE DESARROLLO DE LA UNIVERSIDAD | J58: CONTEXTO ACTUAL Y A FUTURO DEL INDICADOR (5.2) | V58: Total alcanzado (Se reporta en el tercer cuatrimestre) (5.3)
B59: Canchas deportivas | C59: =(IF(B59="Porcentaje de utilización de la infraestructura",#REF!,IF(B59="Edificios de docencia de dos niveles",EY14,IF(B59="Edificios de docencia de un nivel",EY15,IF(B59="Edificios de laboratorios y talleres",EY16,IF(B59="Bibliotecas",EY17,IF(B59="Número de cafeterías",EY18,IF(B59="Gimnasios/auditorios",EY19,IF(B59="Edificios de rectoría",EY20,IF(B59="Edificios de vinculación",EY21,IF(B59="Edificios de almacén",EY22,IF(B59="Canchas deportivas",EY23)))))))))))) -> Número de canchas deportivas sin tomar en cuenta las ya existentes, necesarias debido al aumento de matrícula para ofertar un servicio educativo de calidad. Nota: el número de canchas deportivas tendrá que ser consistente con la proyección de crecimiento de matrícula de la universidad (reportar los construidos durante el periodo de análisis) | D59: =(IF(B59="Porcentaje de utilización de la infraestructura",#REF!,IF(B59="Edificios de docencia de dos niveles",EZ14,IF(B59="Edificios de docencia de un nivel",EZ15,IF(B59="Edificios de laboratorios y talleres",EZ16,IF(B59="Bibliotecas",EZ17,IF(B59="Número de cafeterías",EZ18,IF(B59="Gimnasios/auditorios",EZ19,IF(B59="Edificios de rectoría",EZ20,IF(B59="Edificios de vinculación",EZ21,IF(B59="Edificios de almacén",EZ22,IF(B59="Canchas deportivas",EZ23)))))))))))) -> Canchas | J59: 2021 | P59: 2022
J60: Número actual | M60: Porcentaje actual | P60: Número a lograr | S60: Porcentaje a lograr | V60: Número alcanzado | Y60: Porcentaje alcanzado
B62: NOMBRE DEL INDICADOR (5.1) | C62: FÓRMULA | D62: UNIDAD DE MEDIDA | E62: META INSTITUCIONAL A 2024 PROGRAMA INSTITUCIONAL DE DESARROLLO DE LA UNIVERSIDAD | J62: CONTEXTO ACTUAL Y A FUTURO DEL INDICADOR (5.2) | V62: Total alcanzado (Se reporta en el tercer cuatrimestre) (5.3)
B63: Edificios de docencia de dos niveles | C63: =(IF(B63="Porcentaje de utilización de la infraestructura",#REF!,IF(B63="Edificios de docencia de dos niveles",EY14,IF(B63="Edificios de docencia de un nivel",EY15,IF(B63="Edificios de laboratorios y talleres",EY16,IF(B63="Bibliotecas",EY17,IF(B63="Número de cafeterías",EY18,IF(B63="Gimnasios/auditorios",EY19,IF(B63="Edificios de rectoría",EY20,IF(B63="Edificios de vinculación",EY21,IF(B63="Edificios de almacén",EY22,IF(B63="Canchas deportivas",EY23)))))))))))) -> Número de edificios de docencia de dos niveles, sin tomar en cuenta los ya existentes, necesarios para alojar el aumento de la matrícula Nota: el número de edificios de docencia de dos niveles tendrá que ser consistente con la proyección de crecimiento de matrícula de la universidad (reportar los construidos durante el periodo de análisis) | D63: =(IF(B63="Porcentaje de utilización de la infraestructura",#REF!,IF(B63="Edificios de docencia de dos niveles",EZ14,IF(B63="Edificios de docencia de un nivel",EZ15,IF(B63="Edificios de laboratorios y talleres",EZ16,IF(B63="Bibliotecas",EZ17,IF(B63="Número de cafeterías",EZ18,IF(B63="Gimnasios/auditorios",EZ19,IF(B63="Edificios de rectoría",EZ20,IF(B63="Edificios de vinculación",EZ21,IF(B63="Edificios de almacén",EZ22,IF(B63="Canchas deportivas",EZ23)))))))))))) -> Edificios | J63: 2021 | P63: 2022
J64: Número actual | M64: Porcentaje actual | P64: Número a lograr | S64: Porcentaje a lograr | V64: Número alcanzado | Y64: Porcentaje alcanzado
B66: OBJETIVO AL QUE ATIENDE DE ACUERDO AL PSE 2020-2024 (6)
B67: CALENDARIZACIÓN Y SEGUIMIENTO DE LAS PRINCIPALES ACTIVIDADES (7)
B68: ACTIVIDADES | D68: UNIDAD DE MEDIDA | E68: META ANUAL | G68: CALENDARIO 2022 CUATRIMESTRAL | S68: JUSTIFICACIÓN DE LAS DESVIACIONES POSITIVAS O NEGATIVAS (8) | Z68: ÁREA EJECUTORA (9)
G69: 1 | K69: 2 | O69: 3
G70: PROG | I70: ALC | K70: PROG | M70: ALC | O70: PROG | Q70: ALC
G71: # | H71: % | I71: # | J71: % | K71: # | L71: % | M71: # | N71: % | O71: # | P71: % | Q71: # | R71: %
B77: DESCRIPCIÓN DEL ALCANCE DEL INDICADOR Y EFECTO SOCIOECONOMICO (10)
B81: NOBRE Y FIRMA DEL/LA RECTOR(A) | Q81: NOMBRE Y FIRMA DE LA PERSONA RESPONSABLE DEL PROCESO
